Workbook

Sheet Inicio MBcp
A24: Descargue la versión Kindle
K32: Miguel Cervantes Jiménez

Sheet mlc_Demanda_Factor_Variable (hidden)
A1: MERCADO LABORAL
A2: Maximización del beneficio y la demanda del factor variable
B5: Función de producción | D5: Isobeneficio inicial | F5: Isobeneficio final
B6: y | C6: =Ocultomlabcom!C27 -> 250.0 | D6: p | E6: =Ocultomlabcom!E27 -> 850.0 | F6: p | G6: =Ocultomlabcom!P27 -> 850.0
B7: A | C7: 1.0 | D7: p | E7: 10.0 | F7: p | G7: =E7 -> 10.0
B8: q1 | C8: =Ocultomlabcom!C29 -> 625.0 | D8: w1 | E8: 2.0 | F8: w1 | G8: =E8 -> 2.0
B9: a | C9: 0.5 | D9: x1 | E9: =Ocultomlabcom!E32 -> 625.0 | F9: q1 | G9: =Ocultomlabcom!P32 -> 625.0
B10: q2 | C10: 100.0 | D10: w2 | E10: 4.0 | F10: w2 | G10: =E10 -> 4.0
B11: b | C11: 0.5 | D11: x2 | E11: =Ocultomlabcom!E34 -> 100.0 | F11: q2 | G11: =C10 -> 100.0
C12: Insertar datos correspondientes | F12: y | G12: =Ocultomlabcom!N27 -> 250.0
B14: Parámetros del isobeneficio 1 (inicial)
B15: y | C15: p / P | D15: (w2 * q2)/p | F15: (w1 * q1)/p
B16: =SUM(C16:F16) -> 250.0 | C16: =E6/E7 -> 85.0 | D16: =(E10/E7)*C10 -> 40.0 | F16: =(E8/E7)*E9 -> 125.0
B18: Parámetros del isobeneficio 2 (final)
B19: y | C19: p / P | D19: (w2 * q2)/p | F19: (w1' * q1)/p
B20: =SUM(C20:F20) -> 250 | C20: =G6/G7 -> 85.0 | D20: =G10/G7*G11 -> 40.0 | F20: =G8/G7*G9 -> 125.0
C22: Demanda factor variable | F22: Inicial | G22: Final
C23: w1 | F23: =E8 -> 2.0 | G23: =G8 -> 2.0
C24: q1 | F24: =E9 -> 625 | G24: =G9 -> 625
B26: Títulos
B27: Resultados
B28: Insertar Datos
B29: Insertar datos
B30: Valores de equilibrio

Sheet mlc_Elección_Ocio_Consumo (hidden)
A1: MERCADO LABORAL
A2: Elección ocio-consumo
B4: Restricción presupuestal | C4: Caso 1
B5: q | C5: =Ocultomlabcom!CA31 -> 11.8
B6: Ocio | C6: =Ocultomlabcom!CA32 -> 12.2
B7: c | C7: =Ocultomlabcom!CA33 -> 61.0
B8: m | C8: 20.0
B9: w | C9: 50.0
B10: p | C10: 10.0
B11: q max | C11: =Ocultomlabcom!CA37 -> 24.0
B13: Función de utilidad | C13: Caso 1
B14: a | C14: 0.5
B15: 1-a | C15: =Ocultomlabcom!CA41 -> 0.5
B16: U | C16: =Ocultomlabcom!CA42 -> 27.3
B17: Insertar datos correspondientes
B24: Títulos
B25: Resultados
B26: Insertar Datos
B27: Insertar datos
B28: Valores de equilibrio

Sheet mlc_Ingreso (hidden)
A1: MERCADO LABORAL
A2: Variación del salario
B4: Restricción presupuestal | C4: Caso 1 | D4: Caso 2
B5: q | C5: =Ocultomlabcom!CO31 -> 11.8 | D5: =Ocultomlabcom!CP31 -> 11.8
B6: Ocio | C6: =Ocultomlabcom!CO32 -> 12.2 | D6: =Ocultomlabcom!CP32 -> 12.2
B7: c | C7: =Ocultomlabcom!CO33 -> 61.0 | D7: =Ocultomlabcom!CP33 -> 61.0
B8: m | C8: 20.0 | D8: =Ocultomlabcom!CP34 -> 20.0
B9: w | C9: 50.0 | D9: =C9 -> 50.0
B10: p | C10: 10.0 | D10: =Ocultomlabcom!CP36 -> 10.0
B11: q max | C11: =Ocultomlabcom!CO37 -> 24.0 | D11: =Ocultomlabcom!CP37 -> 24.0
B13: Función de utilidad | C13: Caso 1 | D13: Caso 2
B14: a | C14: 0.5 | D14: =Ocultomlabcom!CP40 -> 0.5
B15: 1-a | C15: =Ocultomlabcom!CO41 -> 0.5 | D15: =Ocultomlabcom!CP41 -> 0.5
B16: U | C16: =Ocultomlabcom!CO42 -> 27.3 | D16: =Ocultomlabcom!CP42 -> 27.3
B17: Insertar datos correspondientes
B24: Títulos
B25: Resultados
B26: Insertar Datos
B27: Insertar datos
B28: Valores de equilibrio

Sheet mlc_Oferta_Curva_Ocio_Consumo (hidden)
A1: MERCADO LABORAL
A2: Curva ocio - consumo
B4: Restricción presupuestal | C4: Caso 1 | D4: Caso 2 | E4: Caso 3
B5: q | C5: =Ocultomlabcom!AA31 -> 11.8 | D5: =Ocultomlabcom!AB31 -> 11.8 | E5: =Ocultomlabcom!AC31 -> 11.8
B6: Ocio | C6: =Ocultomlabcom!AA32 -> 12.2 | D6: =Ocultomlabcom!AB32 -> 12.2 | E6: =Ocultomlabcom!AC32 -> 12.2
B7: c | C7: =Ocultomlabcom!AA33 -> 61.0 | D7: =Ocultomlabcom!AB33 -> 61.0 | E7: =Ocultomlabcom!AC33 -> 61.0
B8: m | C8: 20.0 | D8: =Ocultomlabcom!AB34 -> 20.0 | E8: =Ocultomlabcom!AC34 -> 20.0
B9: w | C9: 50.0 | D9: 50.0 | E9: 50.0
B10: p | C10: 10.0 | D10: =Ocultomlabcom!AB36 -> 10.0 | E10: =Ocultomlabcom!AC36 -> 10.0
B11: q max | C11: 24.0 | D11: 24.0 | E11: 24.0
B13: Función de utilidad | C13: Caso 1 | D13: Caso 2 | E13: Caso 3
B14: a | C14: 0.5 | D14: =Ocultomlabcom!AB40 -> 0.5 | E14: =Ocultomlabcom!AC40 -> 0.5
B15: 1-a | C15: =Ocultomlabcom!AA41 -> 0.5 | D15: =Ocultomlabcom!AB41 -> 0.5 | E15: =Ocultomlabcom!AC41 -> 0.5
B16: U | C16: =Ocultomlabcom!AA42 -> 27.3 | D16: =Ocultomlabcom!AB42 -> 27.3 | E16: =Ocultomlabcom!AC42 -> 27.3 | I16: =Ocultomlabcom!AD35 -> 50
B17: Insertar datos correspondientes
B24: Títulos
B25: Resultados
B26: Insertar Datos
B27: Insertar datos
B28: Valores de equilibrio

Sheet mlc_Oferta_Trabajo (hidden)
A1: MERCADO LABORAL
A2: Oferta de trabajo
B4: Restricción presupuestal | C4: Caso 1 | D4: Caso 2 | E4: Caso 3
B5: q | C5: =Ocultomlabcom!DQ31 -> 10.0 | D5: =Ocultomlabcom!DR31 -> 10.0 | E5: =Ocultomlabcom!DS31 -> 10.0
B6: Ocio | C6: =Ocultomlabcom!DQ32 -> 14.0 | D6: =Ocultomlabcom!DR32 -> 14.0 | E6: =Ocultomlabcom!DS32 -> 14.0
B7: c | C7: =Ocultomlabcom!DQ33 -> 70.0 | D7: =Ocultomlabcom!DR33 -> 70.0 | E7: =Ocultomlabcom!DS33 -> 70.0
B8: m | C8: 20.0 | D8: =Ocultomlabcom!DR34 -> 20.0 | E8: =Ocultomlabcom!DS34 -> 20.0
B9: w | C9: 50.0 | D9: 50.0 | E9: 50.0
B10: p | C10: 10.0 | D10: =Ocultomlabcom!DR36 -> 10.0 | E10: =Ocultomlabcom!DS36 -> 10.0
B11: q max | C11: 24.0 | D11: 24.0 | E11: 24.0
B13: Función de utilidad | C13: Caso 1 | D13: Caso 2 | E13: Caso 3
B14: a | C14: 0.5 | D14: =Ocultomlabcom!DR40 -> 0.5 | E14: =Ocultomlabcom!DS40 -> 0.5
B15: 1-a | C15: =Ocultomlabcom!DQ41 -> 0.5 | D15: =Ocultomlabcom!DR41 -> 0.5 | E15: =Ocultomlabcom!DS41 -> 0.5
B16: U | C16: =Ocultomlabcom!DP42 -> 31.3 | D16: =Ocultomlabcom!DR42 -> 31.3 | E16: =Ocultomlabcom!DS42 -> 31.3 | I16: =Ocultomlabcom!DT35 -> 50
B17: Insertar datos correspondientes
B24: Títulos
B25: Resultados
B26: Insertar Datos
B27: Insertar datos
B28: Valores de equilibrio

Sheet Ocultomlabcom (hidden)
A1: Maximización del Beneficio Sistema Ampliado Demanda del Factor Variable | L1: Maximización del Beneficio Sistema Ampliado Modificado | Y1: Senda Expansión | Z1: recta presupuestaria 1 | AI1: COBB-DOUGLAS | BO1: Oculta Caso 0.5 | BY1: Punto | BZ1: recta presupuestaria 1 | CI1: COBB-DOUGLAS | CM1: Ingreso | CN1: recta presupuestaria 1 | CW1: COBB-DOUGLAS | DO1: Oferta de trabajo | DP1: recta presupuestaria 1 | DY1: COBB-DOUGLAS | EC1: Caso 0.5 | EM1: Caso 2 | FA1: Oculta Caso 3 | FO1: Caso 5
A2: Ponderador | B2: Función de Producción | C2: x1 | D2: Producto Marginal | E2: Isobeneficio Inicial | F2: x1 line | H2: y1Line | J2: X1 GRAF | K2: PT GRAF | L2: Ponderador | M2: Función de Producción | N2: x1 | O2: Producto Marginal | P2: Isobeneficio Final | Q2: x2 line | S2: y2Line | Y2: Ponderador | Z2: ocio | AA2: consumo | AB2: q | AC2: x1 line | AE2: x | AF2: y | AG2: x | AH2: y | AI2: Consumo | AJ2: ocio rest | AK2: consrest | AM2: Ponderador | AN2: ocio | AO2: consumo | AP2: q | AQ2: x1 line | AS2: x | AT2: y | AU2: x | AV2: y | AW2: Consumo | AX2: ocio rest | AY2: consrest | BA2: Ponderador | BB2: ocio | BC2: consumo | BD2: q | BE2: x1 line | BG2: x | BH2: y | BI2: x | BJ2: y | BK2: Consumo | BL2: ocio rest | BM2: consrest | BO2: Ponderador | BP2: ocio | BQ2: consumo | BR2: q | BS2: x1 line | BU2: Consumo | BV2: ocio rest | BW2: consrest | BY2: Ponderador | BZ2: ocio | CA2: consumo | CB2: q | CC2: x1 line | CE2: x | CF2: y | CG2: x | CH2: y | CI2: Consumo | CJ2: ocio rest | CK2: consrest | CM2: Ponderador | CN2: ocio | CO2: consumo | CP2: q | CQ2: x1 line | CS2: x | CT2: y | CU2: x | CV2: y | CW2: Consumo | CX2: ocio rest | CY2: consrest | DA2: Ponderador | DB2: ocio | DC2: consumo | DD2: q | DE2: x1 line | DG2: x | DH2: y | DI2: x | DJ2: y | DK2: Consumo | DL2: ocio rest | DM2: consrest | DO2: Ponderador | DP2: ocio | DQ2: consumo | DR2: q | DS2: x1 line | DU2: x | DV2: y | DW2: x | DX2: y | DY2: Consumo | DZ2: ocio rest | EA2: consrest | EC2: Ponderador | ED2: ocio | EE2: consumo | EF2: q | EG2: x1 line | EI2: Consumo | EJ2: ocio rest | EK2: consrest | EM2: Ponderador | EN2: ocio | EO2: consumo | EP2: q | EQ2: x1 line | ES2: x | ET2: y | EU2: x | EV2: y | EW2: Consumo | EX2: ocio rest | EY2: consrest | FA2: Ponderador | FB2: ocio | FC2: consumo | FD2: q | FE2: x1 line | FG2: x | FH2: y | FI2: x | FJ2: y | FK2: Consumo | FL2: ocio rest | FM2: consrest | FO2: Ponderador | FP2: ocio | FQ2: consumo | FR2: q | FS2: x1 line | FU2: Consumo | FV2: ocio rest | FW2: consrest
A3: 0 | B3: =C$28*(C3^(C$30))*(C$32^(C$33)) -> 0 | C3: =C$29*1.6*A3 -> 0 | D3: 0 | E3: =((E$27/E$28)+(E$33*E$34)/E$28)+((E$30/E$28)*C3) -> 125.00 | F3: =C$29 -> 625.00 | G3: =C$27*A3 -> 0 | H3: =$C$29*A3 -> 0 | I3: =$E$29 -> 250.00 | J3: =IF($E$30<$P$30,C3,N3) -> 0 | K3: =IF($E$30<$P$30,B3,M3) -> 0 | L3: 0 | M3: =N$28*(N3^(N$30))*(N$32^(N$33)) -> 0 | N3: =N$29*1.6*L3 -> 0 | O3: 0 | P3: =((P$27/P$28)+(P$33*P$34)/P$28)+((P$30/P$28)*N3) -> 125.00 | Q3: =N$29 -> 625.00 | R3: =N$27*L3 -> 0 | S3: =$N$29*L3 -> 0 | T3: =$P$29 -> 250.00 | Y3: 0 | Z3: =$AA$37-($AA$37*Y3) -> 24.0 | AA3: =(($AA$34+($AA$35*$AA$37))/$AA$36)-(($AA$35/$AA$36)*(Z3)) -> 2.00 | AB3: 24.00 | AC3: =$Z$3 -> 24.00 | AD3: =$AA$3*Y3 -> 0 | AE3: =$AA$32 -> 12.20 | AF3: =$AA$33*Y3 -> 0 | AG3: =$AA$32*Y3 -> 0 | AH3: =$AA$33 -> 61.00 | AI3: =($AA$42/(Z3^$AA$40))^(1/($AA$41)) -> 31.01 | AJ3: =($AA$42/(AK3^$AA$41))^(1/($AA$40)) -> 24.00 | AK3: =IF(AI3>$AA$23,AK2,AI3) -> 31.00833333 | AM3: 0 | AN3: =$AB$37-($AA$37*AM3) -> 24.0 | AO3: =($AB$34/$AB$36)+($AB$35/$AB$36*$AB$37)-(($AB$35/$AB$36)*(AN3)) -> 2.00 | AP3: 24.00 | AQ3: =$AN$3 -> 24.00 | AR3: =$AO$3*AM3 -> 0 | AS3: =$AB$32 -> 12.20 | AT3: =$AB$33*AM3 -> 0 | AU3: =$AB$32*AM3 -> 0 | AV3: =$AB$33 -> 61.00 | AW3: =($AB$42/(AN3^$AB$40))^(1/($AB$41)) -> 31.01 | AX3: =($AB$42/(AY3^$AB$41))^(1/($AB$40)) -> 24.00 | AY3: =IF(AW3>$AO$23,AY2,AW3) -> 31.00833333 | BA3: 0 | BB3: =$AC$37-($AA$37*BA3) -> 24.0 | BC3: =($AC$34/$AC$36)+($AC$35/$AC$36*$AC$37)-(($AC$35/$AC$36)*(BB3)) -> 2.00 | BD3: 24.00 | BE3: =$BB$3 -> 24.00 | BF3: =$BC$3*BA3 -> 0 | BG3: =$AC$32 -> 12.20 | BH3: =$AC$33*BA3 -> 0 | BI3: =$AC$32*BA3 -> 0 | BJ3: =$AC$33 -> 61.00 | BK3: =($AC$42/(BB3^$AC$40))^(1/($AC$41)) -> 31.01 | BL3: =($AC$42/(BM3^$AC$41))^(1/($AC$40)) -> 24.00 | BM3: =IF(BK3>$BC$23,BM2,BK3) -> 31.00833333 | BO3: 0 | BP3: =$Z$37-($Z$37*BO3) -> 24.0 | BQ3: =$Z$34+($Z$35/$Z$36*$Z$37)-(($Z$35/$Z$36)*(BP3)) -> 20.00 | BR3: 24.00 | BS3: =$BP$3 -> 24.00 | BT3: =$BQ$3*BO3 -> 0 | BU3: =($Z$42/(BP3^$Z$40))^(1/($Z$41)) -> 31.01 | BV3: =($Z$42/(BW3^$Z$41))^(1/($Z$40)) -> 24.00 | BW3: =IF(BU3>$BC$23,BW2,BU3) -> 31.00833333 | BX3: 1.00 | BY3: 0 | BZ3: =$CA$37-($CA$37*BY3) -> 24.0 | CA3: =(($CA$34+($CA$35*$CA$37))/$CA$36)-(($CA$35/$CA$36)*(BZ3)) -> 2.00 | CB3: =BX3*$CA$37 -> 24.00 | CC3: =$BZ$3 -> 24.00 | CD3: =($CA$34/$CA$36)*BY3 -> 0 | CE3: =$CA$32 -> 12.20 | CF3: =$CA$33*BY3 -> 0 | CG3: =$CA$32*BY3 -> 0 | CH3: =$CA$33 -> 61.00 | CI3: =($CA$42/(BZ3^$CA$40))^(1/($CA$41)) -> 31.01 | CJ3: =($CA$42/(CK3^$CA$41))^(1/($CA$40)) -> 24.00 | CK3: =IF(CI3>$CA$23,CK2,CI3) -> 31.00833333 | CL3: 1.00 | CM3: 0 | CN3: =$CO$37-($CO$37*CM3) -> 24.0 | CO3: =($CO$34/$CO$36)+($CO$35/$CO$36*$CO$37)-(($CO$35/$CO$36)*(CN3)) -> 2.00 | CP3: =24*CL3 -> 24.00 | CQ3: =$CN$3 -> 24.00 | CR3: =$CO$3*CM3 -> 0 | CS3: =$CO$32 -> 12.20 | CT3: =$CO$33*CM3 -> 0 | CU3: =$CO$32*CM3 -> 0 | CV3: =$CO$33 -> 61.00 | CW3: =($CO$42/(CN3^$CO$40))^(1/($CO$41)) -> 31.01 | CX3: =($CO$42/(CY3^$CO$41))^(1/($CO$40)) -> 24.00 | CY3: =IF(CW3>$CO$23,CY2,CW3) -> 31.00833333 | DA3: 0 | DB3: =$CP$37-($CP$37*DA3) -> 24.0 | DC3: =($CP$34/$CO$36)+($CP$35/$CP$36*$CP$37)-(($CP$35/$CP$36)*(DB3)) -> 2.00 | DD3: =CP3 -> 24.00 | DE3: =$DB$3 -> 24.00 | DF3: =$DC$3*DA3 -> 0 | DG3: =$CP$32 -> 12.20 | DH3: =$CP$33*DA3 -> 0 | DI3: =$CP$32*DA3 -> 0 | DJ3: =$CP$33 -> 61.00 | DK3: =($CP$42/(DB3^$CP$40))^(1/($CP$41)) -> 31.01 | DL3: =($CP$42/(DM3^$CP$41))^(1/($CP$40)) -> 24.00 | DM3: =IF(DK3>$DC$23,DM2,DK3) -> 31.00833333 | DO3: 0 | DP3: =$DP$37-($DP$37*DO3) -> 24.0 | DQ3: =$DQ$34+($DQ$35/$DQ$36*$DQ$37)-(($DQ$35/$DQ$36)*(DP3)) -> 20.00 | DR3: 24.00 | DS3: =$DP$3 -> 24.00 | DT3: =$DQ$3*DO3 -> 0 | DU3: =$DQ$32 -> 14.00 | DV3: =$DQ$33*DO3 -> 0 | DW3: =$DQ$32*DO3 -> 0 | DX3: =$DQ$33 -> 70.00 | DY3: =($DQ$42/(DP3^$DQ$40))^(1/($DQ$41)) -> 40.83 | DZ3: =($DQ$42/(EA3^$DQ$41))^(1/($DQ$40)) -> 24.00 | EA3: =IF(DY3>$DQ$23,EA2,DY3) -> 40.83333333 | EC3: 0 | ED3: =$DP$37-($DP$37*EC3) -> 24.0 | EE3: =$DP$34+($DP$35/$DP$36*$DP$37)-(($DP$35/$DP$36)*(ED3)) -> 20.00 | EF3: 24.00 | EG3: =$ED$3 -> 24.00 | EH3: =$EE$3*EC3 -> 0 | EI3: =($DP$42/(ED3^$DP$40))^(1/($DP$41)) -> 40.83 | EJ3: =($DP$42/(EK3^$DP$41))^(1/($DP$40)) -> 24.00 | EK3: =IF(EI3>$EE$23,EK2,EI3) -> 40.83333333 | EM3: 0 | EN3: =$DR$37-($DR$37*EM3) -> 24.0 | EO3: =$DR$34+($DR$35/$DR$36*$DR$37)-(($DR$35/$DR$36)*(EN3)) -> 20.00 | EP3: 24.00 | EQ3: =$EN$3 -> 24.00 | ER3: =$EO$3*EM3 -> 0 | ES3: =$DR$32 -> 14.00 | ET3: =$DR$33*EM3 -> 0 | EU3: =$DR$32*EM3 -> 0 | EV3: =$DR$33 -> 70.00 | EW3: =($DR$42/(EN3^$DR$40))^(1/($DR$41)) -> 40.83 | EX3: =($DR$42/(EY3^$DR$41))^(1/($DR$40)) -> 24.00 | EY3: =IF(EW3>$EO$23,EY2,EW3) -> 40.83333333 | FA3: 0 | FB3: =$DS$37-($DS$37*FA3) -> 24.0 | FC3: =$DS$34+($DS$35/$DS$36*$DS$37)-(($DS$35/$DS$36)*(FB3)) -> 20.00 | FD3: 24.00 | FE3: =$FB$3 -> 24.00 | FF3: =$FC$3*FA3 -> 0 | FG3: =$DS$32 -> 14.00 | FH3: =$DS$33*FA3 -> 0 | FI3: =$DS$32*FA3 -> 0 | FJ3: =$DS$33 -> 70.00 | FK3: =($DS$42/(FB3^$DS$40))^(1/($DS$41)) -> 40.83 | FL3: =($DS$42/(FM3^$DS$41))^(1/($DS$40)) -> 24.00 | FM3: =IF(FK3>$FC$23,FM2,FK3) -> 40.83333333 | FO3: 0 | FP3: =$DT$37-($DT$37*FO3) -> 24.0 | FQ3: =$DT$34+($DT$35/$DT$36*$DT$37)-(($DT$35/$DT$36)*(FP3)) -> 20.00 | FR3: 24.00 | FS3: =$FP$3 -> 24.00 | FT3: =$FQ$3*FO3 -> 0 | FU3: =($DT$42/(FP3^$DT$40))^(1/($DT$41)) -> 40.83 | FV3: =($DT$42/(FW3^$DT$41))^(1/($DT$40)) -> 24.00 | FW3: =IF(FU3>$FQ$23,FW2,FU3) -> 40.83333333
A4: 0.05 | B4: =C$28*(C4^(C$30))*(C$32^(C$33)) -> 70.71 | C4: =C$29*1.6*A4 -> 50.00 | D4: =C$30*C$28*((C$32/C4)^(C$33)) -> 0.71 | E4: =((E$27/E$28)+(E$33*E$34)/E$28)+((E$30/E$28)*C4) -> 135.00 | F4: =C$29 -> 625.00 | G4: =C$27*A4 -> 12.50 | H4: =$C$29*A4 -> 31.25 | I4: =$E$29 -> 250.00 | J4: =IF($E$30<$P$30,C4,N4) -> 50.00 | K4: =IF($E$30<$P$30,B4,M4) -> 70.71 | L4: 0.05 | M4: =N$28*(N4^(N$30))*(N$32^(N$33)) -> 70.71 | N4: =N$29*1.6*L4 -> 50.00 | O4: =N$30*N$28*((N$32/N4)^(N$33)) -> 0.71 | P4: =((P$27/P$28)+(P$33*P$34)/P$28)+((P$30/P$28)*N4) -> 135.00 | Q4: =N$29 -> 625.00 | R4: =N$27*L4 -> 12.50 | S4: =$N$29*L4 -> 31.25 | T4: =$P$29 -> 250.00 | Y4: 0.05 | Z4: =$AA$37-($AA$37*Y4) -> 22.8 | AA4: 8.00 | AB4: 23.00 | AC4: =$Z$3 -> 24.00 | AD4: =$AA$3*Y4 -> 0.10 | AE4: =$AA$32 -> 12.20 | AF4: =$AA$33*Y4 -> 3.05 | AG4: =$AA$32*Y4 -> 0.61 | AH4: =$AA$33 -> 61.00 | AI4: =($AA$42/(Z4^$AA$40))^(1/($AA$41)) -> 32.64 | AJ4: =($AA$42/(AK4^$AA$41))^(1/($AA$40)) -> 22.80 | AK4: 32.64035088 | AM4: 0.05 | AN4: =$AB$37-($AA$37*AM4) -> 22.8 | AO4: =($AB$34/$AB$36)+($AB$35/$AB$36*$AB$37)-(($AB$35/$AB$36)*(AN4)) -> 8.00 | AP4: 23.00 | AQ4: =$AN$3 -> 24.00 | AR4: =$AO$3*AM4 -> 0.10 | AS4: =$AB$32 -> 12.20 | AT4: =$AB$33*AM4 -> 3.05 | AU4: =$AB$32*AM4 -> 0.61 | AV4: =$AB$33 -> 61.00 | AW4: =($AB$42/(AN4^$AB$40))^(1/($AB$41)) -> 32.64 | AX4: =($AB$42/(AY4^$AB$41))^(1/($AB$40)) -> 22.80 | AY4: =IF(AW4>$AO$23,AY3,AW4) -> 32.64035088 | BA4: 0.05 | BB4: =$AC$37-($AA$37*BA4) -> 22.8 | BC4: =($AC$34/$AC$36)+($AC$35/$AC$36*$AC$37)-(($AC$35/$AC$36)*(BB4)) -> 8.00 | BD4: 23.00 | BE4: =$BB$3 -> 24.00 | BF4: =$BC$3*BA4 -> 0.10 | BG4: =$AC$32 -> 12.20 | BH4: =$AC$33*BA4 -> 3.05 | BI4: =$AC$32*BA4 -> 0.61 | BJ4: =$AC$33 -> 61.00 | BK4: =($AC$42/(BB4^$AC$40))^(1/($AC$41)) -> 32.64 | BL4: =($AC$42/(BM4^$AC$41))^(1/($AC$40)) -> 22.80 | BM4: =IF(BK4>$BC$23,BM3,BK4) -> 32.64035088 | BO4: 0.05 | BP4: 22.8 | BQ4: 26.00 | BR4: 23.00 | BS4: =$BP$3 -> 24.00 | BT4: =$BQ$3*BO4 -> 1.00 | BU4: 32.64 | BV4: 22.80 | BW4: =IF(BU4>$BC$23,BW3,BU4) -> 32.64035088 | BX4: 0.95 | BY4: 0.05 | BZ4: =$CA$37-($CA$37*BY4) -> 22.8 | CA4: =(($CA$34+($CA$35*$CA$37))/$CA$36)-(($CA$35/$CA$36)*(BZ4)) -> 8.00 | CB4: =BX4*$CA$37 -> 22.80 | CC4: =$BZ$3 -> 24.00 | CD4: 0.10 | CE4: =$CA$32 -> 12.20 | CF4: =$CA$33*BY4 -> 3.05 | CG4: =$CA$32*BY4 -> 0.61 | CH4: =$CA$33 -> 61.00 | CI4: =($CA$42/(BZ4^$CA$40))^(1/($CA$41)) -> 32.64 | CJ4: =($CA$42/(CK4^$CA$41))^(1/($CA$40)) -> 22.80 | CK4: =IF(CI4>$CA$23,CK3,CI4) -> 32.64035088 | CL4: 0.95 | CM4: 0.05 | CN4: =$CO$37-($CO$37*CM4) -> 22.8 | CO4: =($CO$34/$CO$36)+($CO$35/$CO$36*$CO$37)-(($CO$35/$CO$36)*(CN4)) -> 8.00 | CP4: =24*CL4 -> 22.80 | CQ4: =$CN$3 -> 24.00 | CR4: =$CO$3*CM4 -> 0.10 | CS4: =$CO$32 -> 12.20 | CT4: =$CO$33*CM4 -> 3.05 | CU4: =$CO$32*CM4 -> 0.61 | CV4: =$CO$33 -> 61.00 | CW4: =($CO$42/(CN4^$CO$40))^(1/($CO$41)) -> 32.64 | CX4: =($CO$42/(CY4^$CO$41))^(1/($CO$40)) -> 22.80 | CY4: =IF(CW4>$CO$23,CY3,CW4) -> 32.64035088 | DA4: 0.05 | DB4: =$CP$37-($CP$37*DA4) -> 22.8 | DC4: =($CP$34/$CO$36)+($CP$35/$CP$36*$CP$37)-(($CP$35/$CP$36)*(DB4)) -> 8.00 | DD4: =CP4 -> 22.80 | DE4: =$DB$3 -> 24.00 | DF4: =$DC$3*DA4 -> 0.10 | DG4: =$CP$32 -> 12.20 | DH4: =$CP$33*DA4 -> 3.05 | DI4: =$CP$32*DA4 -> 0.61 | DJ4: =$CP$33 -> 61.00 | DK4: =($CP$42/(DB4^$CP$40))^(1/($CP$41)) -> 32.64 | DL4: =($CP$42/(DM4^$CP$41))^(1/($CP$40)) -> 22.80 | DM4: =IF(DK4>$DC$23,DM3,DK4) -> 32.64035088 | DO4: 0.05 | DP4: =$DP$37-($DP$37*DO4) -> 22.8 | DQ4: =$DQ$34+($DQ$35/$DQ$36*$DQ$37)-(($DQ$35/$DQ$36)*(DP4)) -> 26.00 | DR4: 23.00 | DS4: =$DP$3 -> 24.00 | DT4: =$DQ$3*DO4 -> 1.00 | DU4: =$DQ$32 -> 14.00 | DV4: =$DQ$33*DO4 -> 3.50 | DW4: =$DQ$32*DO4 -> 0.70 | DX4: =$DQ$33 -> 70.00 | DY4: =($DQ$42/(DP4^$DQ$40))^(1/($DQ$41)) -> 42.98 | DZ4: =($DQ$42/(EA4^$DQ$41))^(1/($DQ$40)) -> 22.80 | EA4: =IF(DY4>$DQ$23,EA3,DY4) -> 42.98245614 | EC4: 0.05 | ED4: =$DP$37-($DP$37*EC4) -> 22.8 | EE4: =$DP$34+($DP$35/$DP$36*$DP$37)-(($DP$35/$DP$36)*(ED4)) -> 26.00 | EF4: 23.00 | EG4: =$ED$3 -> 24.00 | EH4: =$EE$3*EC4 -> 1.00 | EI4: =($DP$42/(ED4^$DP$40))^(1/($DP$41)) -> 42.98 | EJ4: =($DP$42/(EK4^$DP$41))^(1/($DP$40)) -> 22.80 | EK4: =IF(EI4>$EE$23,EK3,EI4) -> 42.98245614 | EM4: 0.05 | EN4: =$DR$37-($DR$37*EM4) -> 22.8 | EO4: =$DR$34+($DR$35/$DR$36*$DR$37)-(($DR$35/$DR$36)*(EN4)) -> 26.00 | EP4: 23.00 | EQ4: =$EN$3 -> 24.00 | ER4: =$EO$3*EM4 -> 1.00 | ES4: =$DR$32 -> 14.00 | ET4: =$DR$33*EM4 -> 3.50 | EU4: =$DR$32*EM4 -> 0.70 | EV4: =$DR$33 -> 70.00 | EW4: =($DR$42/(EN4^$DR$40))^(1/($DR$41)) -> 42.98 | EX4: =($DR$42/(EY4^$DR$41))^(1/($DR$40)) -> 22.80 | EY4: 42.98245614 | FA4: 0.05 | FB4: =$DS$37-($DS$37*FA4) -> 22.8 | FC4: =$DS$34+($DS$35/$DS$36*$DS$37)-(($DS$35/$DS$36)*(FB4)) -> 26.00 | FD4: 23.00 | FE4: =$FB$3 -> 24.00 | FF4: =$FC$3*FA4 -> 1.00 | FG4: =$DS$32 -> 14.00 | FH4: =$DS$33*FA4 -> 3.50 | FI4: =$DS$32*FA4 -> 0.70 | FJ4: =$DS$33 -> 70.00 | FK4: =($DS$42/(FB4^$DS$40))^(1/($DS$41)) -> 42.98 | FL4: =($DS$42/(FM4^$DS$41))^(1/($DS$40)) -> 22.80 | FM4: =IF(FK4>$FC$23,FM3,FK4) -> 42.98245614 | FO4: 0.05 | FP4: =$DT$37-($DT$37*FO4) -> 22.8 | FQ4: =$DT$34+($DT$35/$DT$36*$DT$37)-(($DT$35/$DT$36)*(FP4)) -> 26.00 | FR4: 23.00 | FS4: =$FP$3 -> 24.00 | FT4: =$FQ$3*FO4 -> 1.00 | FU4: =($DT$42/(FP4^$DT$40))^(1/($DT$41)) -> 42.98 | FV4: =($DT$42/(FW4^$DT$41))^(1/($DT$40)) -> 22.80 | FW4: =IF(FU4>$FQ$23,FW3,FU4) -> 42.98245614
A5: 0.10 | B5: 100.00 | C5: 100.00 | D5: =C$30*C$28*((C$32/C5)^(C$33)) -> 0.50 | E5: 145.00 | F5: 625.00 | G5: 25.00 | H5: 62.50 | I5: 250.00 | J5: =IF($E$30<$P$30,C5,N5) -> 100.00 | K5: 100.00 | L5: 0.10 | M5: 100.00 | N5: 100.00 | O5: =N$30*N$28*((N$32/N5)^(N$33)) -> 0.50 | P5: 145.00 | Q5: 625.00 | R5: 25.00 | S5: 62.50 | T5: 250.00 | Y5: 0.10 | Z5: 21.6 | AA5: 14.00 | AB5: 22.00 | AC5: 24.00 | AD5: 0.20 | AE5: 12.20 | AF5: 6.10 | AG5: 1.22 | AH5: 61.00 | AI5: 34.45 | AJ5: 21.60 | AK5: 34.4537037 | AM5: 0.10 | AN5: 21.6 | AO5: 14.00 | AP5: 22.00 | AQ5: 24.00 | AR5: 0.20 | AS5: 12.20 | AT5: 6.10 | AU5: 1.22 | AV5: 61.00 | AW5: 34.45 | AX5: 21.60 | AY5: 34.4537037 | BA5: 0.10 | BB5: 21.6 | BC5: 14.00 | BD5: 22.00 | BE5: 24.00 | BF5: 0.20 | BG5: 12.20 | BH5: 6.10 | BI5: 1.22 | BJ5: 61.00 | BK5: 34.45 | BL5: 21.60 | BM5: 34.4537037 | BO5: 0.10 | BP5: 21.6 | BQ5: 32.00 | BR5: 22.00 | BS5: 24.00 | BT5: 2.00 | BU5: 34.45 | BV5: 21.60 | BW5: 34.4537037 | BX5: 0.90 | BY5: 0.10 | BZ5: 21.6 | CA5: 14.00 | CB5: 21.60 | CC5: 24.00 | CD5: 0.20 | CE5: 12.20 | CF5: 6.10 | CG5: 1.22 | CH5: 61.00 | CI5: 34.45 | CJ5: 21.60 | CK5: 34.4537037 | CL5: 0.90 | CM5: 0.10 | CN5: 21.6 | CO5: 14.00 | CP5: 21.60 | CQ5: 24.00 | CR5: 0.20 | CS5: 12.20 | CT5: 6.10 | CU5: 1.22 | CV5: 61.00 | CW5: 34.45 | CX5: 21.60 | CY5: 34.4537037 | DA5: 0.10 | DB5: 21.6 | DC5: 14.00 | DD5: 21.60 | DE5: 24.00 | DF5: 0.20 | DG5: 12.20 | DH5: 6.10 | DI5: 1.22 | DJ5: 61.00 | DK5: 34.45 | DL5: 21.60 | DM5: 34.4537037 | DO5: 0.10 | DP5: 21.6 | DQ5: 32.00 | DR5: 22.00 | DS5: 24.00 | DT5: 2.00 | DU5: 14.00 | DV5: 7.00 | DW5: 1.40 | DX5: 70.00 | DY5: 45.37 | DZ5: 21.60 | EA5: 45.37037037 | EC5: 0.10 | ED5: 21.6 | EE5: 32.00 | EF5: 22.00 | EG5: 24.00 | EH5: 2.00 | EI5: 45.37 | EJ5: 21.60 | EK5: 45.37037037 | EM5: 0.10 | EN5: 21.6 | EO5: 32.00 | EP5: 22.00 | EQ5: 24.00 | ER5: 2.00 | ES5: 14.00 | ET5: 7.00 | EU5: 1.40 | EV5: 70.00 | EW5: 45.37 | EX5: 21.60 | EY5: 45.37037037 | FA5: 0.10 | FB5: 21.6 | FC5: 32.00 | FD5: 22.00 | FE5: 24.00 | FF5: 2.00 | FG5: 14.00 | FH5: 7.00 | FI5: 1.40 | FJ5: 70.00 | FK5: 45.37 | FL5: 21.60 | FM5: 45.37037037 | FO5: 0.10 | FP5: 21.6 | FQ5: 32.00 | FR5: 22.00 | FS5: 24.00 | FT5: 2.00 | FU5: 45.37 | FV5: 21.60 | FW5: 45.37037037
A6: 0.15 | B6: 122.47 | C6: 150.00 | D6: 0.41 | E6: 155.00 | F6: 625.00 | G6: 37.50 | H6: 93.75 | I6: 250.00 | J6: 150.00 | K6: 122.47 | L6: 0.15 | M6: 122.47 | N6: 150.00 | O6: 0.41 | P6: 155.00 | Q6: 625.00 | R6: 37.50 | S6: 93.75 | T6: 250.00 | Y6: 0.15 | Z6: 20.4 | AA6: 20.00 | AB6: 21.00 | AC6: 24.00 | AD6: 0.30 | AE6: 12.20 | AF6: 9.15 | AG6: 1.83 | AH6: 61.00 | AI6: 36.48 | AJ6: 20.40 | AK6: 36.48039216 | AM6: 0.15 | AN6: 20.4 | AO6: 20.00 | AP6: 21.00 | AQ6: 24.00 | AR6: 0.30 | AS6: 12.20 | AT6: 9.15 | AU6: 1.83 | AV6: 61.00 | AW6: 36.48 | AX6: 20.40 | AY6: 36.48039216 | BA6: 0.15 | BB6: 20.4 | BC6: 20.00 | BD6: 21.00 | BE6: 24.00 | BF6: 0.30 | BG6: 12.20 | BH6: 9.15 | BI6: 1.83 | BJ6: 61.00 | BK6: 36.48 | BL6: 20.40 | BM6: 36.48039216 | BO6: 0.15 | BP6: 20.4 | BQ6: 38.00 | BR6: 21.00 | BS6: 24.00 | BT6: 3.00 | BU6: 36.48 | BV6: 20.40 | BW6: 36.48039216 | BX6: 0.85 | BY6: 0.15 | BZ6: 20.4 | CA6: 20.00 | CB6: 20.40 | CC6: 24.00 | CD6: 0.30 | CE6: 12.20 | CF6: 9.15 | CG6: 1.83 | CH6: 61.00 | CI6: 36.48 | CJ6: 20.40 | CK6: 36.48039216 | CL6: 0.85 | CM6: 0.15 | CN6: 20.4 | CO6: 20.00 | CP6: 20.40 | CQ6: 24.00 | CR6: 0.30 | CS6: 12.20 | CT6: 9.15 | CU6: 1.83 | CV6: 61.00 | CW6: 36.48 | CX6: 20.40 | CY6: 36.48039216 | DA6: 0.15 | DB6: 20.4 | DC6: 20.00 | DD6: 20.40 | DE6: 24.00 | DF6: 0.30 | DG6: 12.20 | DH6: 9.15 | DI6: 1.83 | DJ6: 61.00 | DK6: 36.48 | DL6: 20.40 | DM6: 36.48039216 | DO6: 0.15 | DP6: 20.4 | DQ6: 38.00 | DR6: 21.00 | DS6: 24.00 | DT6: 3.00 | DU6: 14.00 | DV6: 10.50 | DW6: 2.10 | DX6: 70.00 | DY6: 48.04 | DZ6: 20.40 | EA6: 48.03921569 | EC6: 0.15 | ED6: 20.4 | EE6: 38.00 | EF6: 21.00 | EG6: 24.00 | EH6: 3.00 | EI6: 48.04 | EJ6: 20.40 | EK6: 48.03921569 | EM6: 0.15 | EN6: 20.4 | EO6: 38.00 | EP6: 21.00 | EQ6: 24.00 | ER6: 3.00 | ES6: 14.00 | ET6: 10.50 | EU6: 2.10 | EV6: 70.00 | EW6: 48.04 | EX6: 20.40 | EY6: 48.03921569 | FA6: 0.15 | FB6: 20.4 | FC6: 38.00 | FD6: 21.00 | FE6: 24.00 | FF6: 3.00 | FG6: 14.00 | FH6: 10.50 | FI6: 2.10 | FJ6: 70.00 | FK6: 48.04 | FL6: 20.40 | FM6: 48.03921569 | FO6: 0.15 | FP6: 20.4 | FQ6: 38.00 | FR6: 21.00 | FS6: 24.00 | FT6: 3.00 | FU6: 48.04 | FV6: 20.40 | FW6: 48.03921569
A7: 0.20 | B7: 141.42 | C7: 200.00 | D7: 0.35 | E7: 165.00 | F7: 625.00 | G7: 50.00 | H7: 125.00 | I7: 250.00 | J7: 200.00 | K7: 141.42 | L7: 0.20 | M7: 141.42 | N7: 200.00 | O7: 0.35 | P7: 165.00 | Q7: 625.00 | R7: 50.00 | S7: 125.00 | T7: 250.00 | Y7: 0.20 | Z7: 19.2 | AA7: 26.00 | AB7: 20.00 | AC7: 24.00 | AD7: 0.40 | AE7: 12.20 | AF7: 12.20 | AG7: 2.44 | AH7: 61.00 | AI7: 38.76 | AJ7: 19.20 | AK7: 38.76041667 | AM7: 0.20 | AN7: 19.2 | AO7: 26.00 | AP7: 20.00 | AQ7: 24.00 | AR7: 0.40 | AS7: 12.20 | AT7: 12.20 | AU7: 2.44 | AV7: 61.00 | AW7: 38.76 | AX7: 19.20 | AY7: 38.76041667 | BA7: 0.20 | BB7: 19.2 | BC7: 26.00 | BD7: 20.00 | BE7: 24.00 | BF7: 0.40 | BG7: 12.20 | BH7: 12.20 | BI7: 2.44 | BJ7: 61.00 | BK7: 38.76 | BL7: 19.20 | BM7: 38.76041667 | BO7: 0.20 | BP7: 19.2 | BQ7: 44.00 | BR7: 20.00 | BS7: 24.00 | BT7: 4.00 | BU7: 38.76 | BV7: 19.20 | BW7: 38.76041667 | BX7: 0.80 | BY7: 0.20 | BZ7: 19.2 | CA7: 26.00 | CB7: 19.20 | CC7: 24.00 | CD7: 0.40 | CE7: 12.20 | CF7: 12.20 | CG7: 2.44 | CH7: 61.00 | CI7: 38.76 | CJ7: 19.20 | CK7: 38.76041667 | CL7: 0.80 | CM7: 0.20 | CN7: 19.2 | CO7: 26.00 | CP7: 19.20 | CQ7: 24.00 | CR7: 0.40 | CS7: 12.20 | CT7: 12.20 | CU7: 2.44 | CV7: 61.00 | CW7: 38.76 | CX7: 19.20 | CY7: 38.76041667 | DA7: 0.20 | DB7: 19.2 | DC7: 26.00 | DD7: 19.20 | DE7: 24.00 | DF7: 0.40 | DG7: 12.20 | DH7: 12.20 | DI7: 2.44 | DJ7: 61.00 | DK7: 38.76 | DL7: 19.20 | DM7: 38.76041667 | DO7: 0.20 | DP7: 19.2 | DQ7: 44.00 | DR7: 20.00 | DS7: 24.00 | DT7: 4.00 | DU7: 14.00 | DV7: 14.00 | DW7: 2.80 | DX7: 70.00 | DY7: 51.04 | DZ7: 19.20 | EA7: 51.04166667 | EC7: 0.20 | ED7: 19.2 | EE7: 44.00 | EF7: 20.00 | EG7: 24.00 | EH7: 4.00 | EI7: 51.04 | EJ7: 19.20 | EK7: 51.04166667 | EM7: 0.20 | EN7: 19.2 | EO7: 44.00 | EP7: 20.00 | EQ7: 24.00 | ER7: 4.00 | ES7: 14.00 | ET7: 14.00 | EU7: 2.80 | EV7: 70.00 | EW7: 51.04 | EX7: 19.20 | EY7: 51.04166667 | FA7: 0.20 | FB7: 19.2 | FC7: 44.00 | FD7: 20.00 | FE7: 24.00 | FF7: 4.00 | FG7: 14.00 | FH7: 14.00 | FI7: 2.80 | FJ7: 70.00 | FK7: 51.04 | FL7: 19.20 | FM7: 51.04166667 | FO7: 0.20 | FP7: 19.2 | FQ7: 44.00 | FR7: 20.00 | FS7: 24.00 | FT7: 4.00 | FU7: 51.04 | FV7: 19.20 | FW7: 51.04166667
A8: 0.25 | B8: 158.11 | C8: 250.00 | D8: 0.32 | E8: 175.00 | F8: 625.00 | G8: 62.50 | H8: 156.25 | I8: 250.00 | J8: 250.00 | K8: 158.11 | L8: 0.25 | M8: 158.11 | N8: 250.00 | O8: 0.32 | P8: 175.00 | Q8: 625.00 | R8: 62.50 | S8: 156.25 | T8: 250.00 | Y8: 0.25 | Z8: 18.0 | AA8: 32.00 | AB8: 19.00 | AC8: 24.00 | AD8: 0.50 | AE8: 12.20 | AF8: 15.25 | AG8: 3.05 | AH8: 61.00 | AI8: 41.34 | AJ8: 18.00 | AK8: 41.34444444 | AM8: 0.25 | AN8: 18.0 | AO8: 32.00 | AP8: 19.00 | AQ8: 24.00 | AR8: 0.50 | AS8: 12.20 | AT8: 15.25 | AU8: 3.05 | AV8: 61.00 | AW8: 41.34 | AX8: 18.00 | AY8: 41.34444444 | BA8: 0.25 | BB8: 18.0 | BC8: 32.00 | BD8: 19.00 | BE8: 24.00 | BF8: 0.50 | BG8: 12.20 | BH8: 15.25 | BI8: 3.05 | BJ8: 61.00 | BK8: 41.34 | BL8: 18.00 | BM8: 41.34444444 | BO8: 0.25 | BP8: 18.0 | BQ8: 50.00 | BR8: 19.00 | BS8: 24.00 | BT8: 5.00 | BU8: 41.34 | BV8: 18.00 | BW8: 41.34444444 | BX8: 0.75 | BY8: 0.25 | BZ8: 18.0 | CA8: 32.00 | CB8: 18.00 | CC8: 24.00 | CD8: 0.50 | CE8: 12.20 | CF8: 15.25 | CG8: 3.05 | CH8: 61.00 | CI8: 41.34 | CJ8: 18.00 | CK8: 41.34444444 | CL8: 0.75 | CM8: 0.25 | CN8: 18.0 | CO8: 32.00 | CP8: 18.00 | CQ8: 24.00 | CR8: 0.50 | CS8: 12.20 | CT8: 15.25 | CU8: 3.05 | CV8: 61.00 | CW8: 41.34 | CX8: 18.00 | CY8: 41.34444444 | DA8: 0.25 | DB8: 18.0 | DC8: 32.00 | DD8: 18.00 | DE8: 24.00 | DF8: 0.50 | DG8: 12.20 | DH8: 15.25 | DI8: 3.05 | DJ8: 61.00 | DK8: 41.34 | DL8: 18.00 | DM8: 41.34444444 | DO8: 0.25 | DP8: 18.0 | DQ8: 50.00 | DR8: 19.00 | DS8: 24.00 | DT8: 5.00 | DU8: 14.00 | DV8: 17.50 | DW8: 3.50 | DX8: 70.00 | DY8: 54.44 | DZ8: 18.00 | EA8: 54.44444444 | EC8: 0.25 | ED8: 18.0 | EE8: 50.00 | EF8: 19.00 | EG8: 24.00 | EH8: 5.00 | EI8: 54.44 | EJ8: 18.00 | EK8: 54.44444444 | EM8: 0.25 | EN8: 18.0 | EO8: 50.00 | EP8: 19.00 | EQ8: 24.00 | ER8: 5.00 | ES8: 14.00 | ET8: 17.50 | EU8: 3.50 | EV8: 70.00 | EW8: 54.44 | EX8: 18.00 | EY8: 54.44444444 | FA8: 0.25 | FB8: 18.0 | FC8: 50.00 | FD8: 19.00 | FE8: 24.00 | FF8: 5.00 | FG8: 14.00 | FH8: 17.50 | FI8: 3.50 | FJ8: 70.00 | FK8: 54.44 | FL8: 18.00 | FM8: 54.44444444 | FO8: 0.25 | FP8: 18.0 | FQ8: 50.00 | FR8: 19.00 | FS8: 24.00 | FT8: 5.00 | FU8: 54.44 | FV8: 18.00 | FW8: 54.44444444
A9: 0.30 | B9: 173.21 | C9: 300.00 | D9: 0.29 | E9: 185.00 | F9: 625.00 | G9: 75.00 | H9: 187.50 | I9: 250.00 | J9: 300.00 | K9: 173.21 | L9: 0.30 | M9: 173.21 | N9: 300.00 | O9: 0.29 | P9: 185.00 | Q9: 625.00 | R9: 75.00 | S9: 187.50 | T9: 250.00 | Y9: 0.30 | Z9: 16.8 | AA9: 38.00 | AB9: 18.00 | AC9: 24.00 | AD9: 0.60 | AE9: 12.20 | AF9: 18.30 | AG9: 3.66 | AH9: 61.00 | AI9: 44.30 | AJ9: 16.80 | AK9: 44.29761905 | AM9: 0.30 | AN9: 16.8 | AO9: 38.00 | AP9: 18.00 | AQ9: 24.00 | AR9: 0.60 | AS9: 12.20 | AT9: 18.30 | AU9: 3.66 | AV9: 61.00 | AW9: 44.30 | AX9: 16.80 | AY9: 44.29761905 | BA9: 0.30 | BB9: 16.8 | BC9: 38.00 | BD9: 18.00 | BE9: 24.00 | BF9: 0.60 | BG9: 12.20 | BH9: 18.30 | BI9: 3.66 | BJ9: 61.00 | BK9: 44.30 | BL9: 16.80 | BM9: 44.29761905 | BO9: 0.30 | BP9: 16.8 | BQ9: 56.00 | BR9: 18.00 | BS9: 24.00 | BT9: 6.00 | BU9: 44.30 | BV9: 16.80 | BW9: 44.29761905 | BX9: 0.70 | BY9: 0.30 | BZ9: 16.8 | CA9: 38.00 | CB9: 16.80 | CC9: 24.00 | CD9: 0.60 | CE9: 12.20 | CF9: 18.30 | CG9: 3.66 | CH9: 61.00 | CI9: 44.30 | CJ9: 16.80 | CK9: 44.29761905 | CL9: 0.70 | CM9: 0.30 | CN9: 16.8 | CO9: 38.00 | CP9: 16.80 | CQ9: 24.00 | CR9: 0.60 | CS9: 12.20 | CT9: 18.30 | CU9: 3.66 | CV9: 61.00 | CW9: 44.30 | CX9: 16.80 | CY9: 44.29761905 | DA9: 0.30 | DB9: 16.8 | DC9: 38.00 | DD9: 16.80 | DE9: 24.00 | DF9: 0.60 | DG9: 12.20 | DH9: 18.30 | DI9: 3.66 | DJ9: 61.00 | DK9: 44.30 | DL9: 16.80 | DM9: 44.29761905 | DO9: 0.30 | DP9: 16.8 | DQ9: 56.00 | DR9: 18.00 | DS9: 24.00 | DT9: 6.00 | DU9: 14.00 | DV9: 21.00 | DW9: 4.20 | DX9: 70.00 | DY9: 58.33 | DZ9: 16.80 | EA9: 58.33333333 | EC9: 0.30 | ED9: 16.8 | EE9: 56.00 | EF9: 18.00 | EG9: 24.00 | EH9: 6.00 | EI9: 58.33 | EJ9: 16.80 | EK9: 58.33333333 | EM9: 0.30 | EN9: 16.8 | EO9: 56.00 | EP9: 18.00 | EQ9: 24.00 | ER9: 6.00 | ES9: 14.00 | ET9: 21.00 | EU9: 4.20 | EV9: 70.00 | EW9: 58.33 | EX9: 16.80 | EY9: 58.33333333 | FA9: 0.30 | FB9: 16.8 | FC9: 56.00 | FD9: 18.00 | FE9: 24.00 | FF9: 6.00 | FG9: 14.00 | FH9: 21.00 | FI9: 4.20 | FJ9: 70.00 | FK9: 58.33 | FL9: 16.80 | FM9: 58.33333333 | FO9: 0.30 | FP9: 16.8 | FQ9: 56.00 | FR9: 18.00 | FS9: 24.00 | FT9: 6.00 | FU9: 58.33 | FV9: 16.80 | FW9: 58.33333333
A10: 0.35 | B10: 187.08 | C10: 350.00 | D10: 0.27 | E10: 195.00 | F10: 625.00 | G10: 87.50 | H10: 218.75 | I10: 250.00 | J10: 350.00 | K10: 187.08 | L10: 0.35 | M10: 187.08 | N10: 350.00 | O10: 0.27 | P10: 195.00 | Q10: 625.00 | R10: 87.50 | S10: 218.75 | T10: 250.00 | Y10: 0.35 | Z10: 15.6 | AA10: 44.00 | AB10: 17.00 | AC10: 24.00 | AD10: 0.70 | AE10: 12.20 | AF10: 21.35 | AG10: 4.27 | AH10: 61.00 | AI10: 47.71 | AJ10: 15.60 | AK10: 47.70512821 | AM10: 0.35 | AN10: 15.6 | AO10: 44.00 | AP10: 17.00 | AQ10: 24.00 | AR10: 0.70 | AS10: 12.20 | AT10: 21.35 | AU10: 4.27 | AV10: 61.00 | AW10: 47.71 | AX10: 15.60 | AY10: 47.70512821 | BA10: 0.35 | BB10: 15.6 | BC10: 44.00 | BD10: 17.00 | BE10: 24.00 | BF10: 0.70 | BG10: 12.20 | BH10: 21.35 | BI10: 4.27 | BJ10: 61.00 | BK10: 47.71 | BL10: 15.60 | BM10: 47.70512821 | BO10: 0.35 | BP10: 15.6 | BQ10: 62.00 | BR10: 17.00 | BS10: 24.00 | BT10: 7.00 | BU10: 47.71 | BV10: 15.60 | BW10: 47.70512821 | BX10: 0.65 | BY10: 0.35 | BZ10: 15.6 | CA10: 44.00 | CB10: 15.60 | CC10: 24.00 | CD10: 0.70 | CE10: 12.20 | CF10: 21.35 | CG10: 4.27 | CH10: 61.00 | CI10: 47.71 | CJ10: 15.60 | CK10: 47.70512821 | CL10: 0.65 | CM10: 0.35 | CN10: 15.6 | CO10: 44.00 | CP10: 15.60 | CQ10: 24.00 | CR10: 0.70 | CS10: 12.20 | CT10: 21.35 | CU10: 4.27 | CV10: 61.00 | CW10: 47.71 | CX10: 15.60 | CY10: 47.70512821 | DA10: 0.35 | DB10: 15.6 | DC10: 44.00 | DD10: 15.60 | DE10: 24.00 | DF10: 0.70 | DG10: 12.20 | DH10: 21.35 | DI10: 4.27 | DJ10: 61.00 | DK10: 47.71 | DL10: 15.60 | DM10: 47.70512821 | DO10: 0.35 | DP10: 15.6 | DQ10: 62.00 | DR10: 17.00 | DS10: 24.00 | DT10: 7.00 | DU10: 14.00 | DV10: 24.50 | DW10: 4.90 | DX10: 70.00 | DY10: 62.82 | DZ10: 15.60 | EA10: 62.82051282 | EC10: 0.35 | ED10: 15.6 | EE10: 62.00 | EF10: 17.00 | EG10: 24.00 | EH10: 7.00 | EI10: 62.82 | EJ10: 15.60 | EK10: 62.82051282 | EM10: 0.35 | EN10: 15.6 | EO10: 62.00 | EP10: 17.00 | EQ10: 24.00 | ER10: 7.00 | ES10: 14.00 | ET10: 24.50 | EU10: 4.90 | EV10: 70.00 | EW10: 62.82 | EX10: 15.60 | EY10: 62.82051282 | FA10: 0.35 | FB10: 15.6 | FC10: 62.00 | FD10: 17.00 | FE10: 24.00 | FF10: 7.00 | FG10: 14.00 | FH10: 24.50 | FI10: 4.90 | FJ10: 70.00 | FK10: 62.82 | FL10: 15.60 | FM10: 62.82051282 | FO10: 0.35 | FP10: 15.6 | FQ10: 62.00 | FR10: 17.00 | FS10: 24.00 | FT10: 7.00 | FU10: 62.82 | FV10: 15.60 | FW10: 62.82051282
A11: 0.40 | B11: 200.00 | C11: 400.00 | D11: 0.25 | E11: 205.00 | F11: 625.00 | G11: 100.00 | H11: 250.00 | I11: 250.00 | J11: 400.00 | K11: 200.00 | L11: 0.40 | M11: 200.00 | N11: 400.00 | O11: 0.25 | P11: 205.00 | Q11: 625.00 | R11: 100.00 | S11: 250.00 | T11: 250.00 | Y11: 0.40 | Z11: 14.4 | AA11: 50.00 | AB11: 16.00 | AC11: 24.00 | AD11: 0.80 | AE11: 12.20 | AF11: 24.40 | AG11: 4.88 | AH11: 61.00 | AI11: 51.68 | AJ11: 14.40 | AK11: 51.68055556 | AM11: 0.40 | AN11: 14.4 | AO11: 50.00 | AP11: 16.00 | AQ11: 24.00 | AR11: 0.80 | AS11: 12.20 | AT11: 24.40 | AU11: 4.88 | AV11: 61.00 | AW11: 51.68 | AX11: 14.40 | AY11: 51.68055556 | BA11: 0.40 | BB11: 14.4 | BC11: 50.00 | BD11: 16.00 | BE11: 24.00 | BF11: 0.80 | BG11: 12.20 | BH11: 24.40 | BI11: 4.88 | BJ11: 61.00 | BK11: 51.68 | BL11: 14.40 | BM11: 51.68055556 | BO11: 0.40 | BP11: 14.4 | BQ11: 68.00 | BR11: 16.00 | BS11: 24.00 | BT11: 8.00 | BU11: 51.68 | BV11: 14.40 | BW11: 51.68055556 | BX11: 0.60 | BY11: 0.40 | BZ11: 14.4 | CA11: 50.00 | CB11: 14.40 | CC11: 24.00 | CD11: 0.80 | CE11: 12.20 | CF11: 24.40 | CG11: 4.88 | CH11: 61.00 | CI11: 51.68 | CJ11: 14.40 | CK11: 51.68055556 | CL11: 0.60 | CM11: 0.40 | CN11: 14.4 | CO11: 50.00 | CP11: 14.40 | CQ11: 24.00 | CR11: 0.80 | CS11: 12.20 | CT11: 24.40 | CU11: 4.88 | CV11: 61.00 | CW11: 51.68 | CX11: 14.40 | CY11: 51.68055556 | DA11: 0.40 | DB11: 14.4 | DC11: 50.00 | DD11: 14.40 | DE11: 24.00 | DF11: 0.80 | DG11: 12.20 | DH11: 24.40 | DI11: 4.88 | DJ11: 61.00 | DK11: 51.68 | DL11: 14.40 | DM11: 51.68055556 | DO11: 0.40 | DP11: 14.4 | DQ11: 68.00 | DR11: 16.00 | DS11: 24.00 | DT11: 8.00 | DU11: 14.00 | DV11: 28.00 | DW11: 5.60 | DX11: 70.00 | DY11: 68.06 | DZ11: 14.40 | EA11: 68.05555556 | EC11: 0.40 | ED11: 14.4 | EE11: 68.00 | EF11: 16.00 | EG11: 24.00 | EH11: 8.00 | EI11: 68.06 | EJ11: 14.40 | EK11: 68.05555556 | EM11: 0.40 | EN11: 14.4 | EO11: 68.00 | EP11: 16.00 | EQ11: 24.00 | ER11: 8.00 | ES11: 14.00 | ET11: 28.00 | EU11: 5.60 | EV11: 70.00 | EW11: 68.06 | EX11: 14.40 | EY11: 68.05555556 | FA11: 0.40 | FB11: 14.4 | FC11: 68.00 | FD11: 16.00 | FE11: 24.00 | FF11: 8.00 | FG11: 14.00 | FH11: 28.00 | FI11: 5.60 | FJ11: 70.00 | FK11: 68.06 | FL11: 14.40 | FM11: 68.05555556 | FO11: 0.40 | FP11: 14.4 | FQ11: 68.00 | FR11: 16.00 | FS11: 24.00 | FT11: 8.00 | FU11: 68.06 | FV11: 14.40 | FW11: 68.05555556
A12: 0.45 | B12: 212.13 | C12: 450.00 | D12: 0.24 | E12: 215.00 | F12: 625.00 | G12: 112.50 | H12: 281.25 | I12: 250.00 | J12: 450.00 | K12: 212.13 | L12: 0.45 | M12: 212.13 | N12: 450.00 | O12: 0.24 | P12: 215.00 | Q12: 625.00 | R12: 112.50 | S12: 281.25 | T12: 250.00 | Y12: 0.45 | Z12: 13.2 | AA12: 56.00 | AB12: 15.00 | AC12: 24.00 | AD12: 0.90 | AE12: 12.20 | AF12: 27.45 | AG12: 5.49 | AH12: 61.00 | AI12: 56.38 | AJ12: 13.20 | AK12: 56.37878788 | AM12: 0.45 | AN12: 13.2 | AO12: 56.00 | AP12: 15.00 | AQ12: 24.00 | AR12: 0.90 | AS12: 12.20 | AT12: 27.45 | AU12: 5.49 | AV12: 61.00 | AW12: 56.38 | AX12: 13.20 | AY12: 56.37878788 | BA12: 0.45 | BB12: 13.2 | BC12: 56.00 | BD12: 15.00 | BE12: 24.00 | BF12: 0.90 | BG12: 12.20 | BH12: 27.45 | BI12: 5.49 | BJ12: 61.00 | BK12: 56.38 | BL12: 13.20 | BM12: 56.37878788 | BO12: 0.45 | BP12: 13.2 | BQ12: 74.00 | BR12: 15.00 | BS12: 24.00 | BT12: 9.00 | BU12: 56.38 | BV12: 13.20 | BW12: 56.37878788 | BX12: 0.55 | BY12: 0.45 | BZ12: 13.2 | CA12: 56.00 | CB12: 13.20 | CC12: 24.00 | CD12: 0.90 | CE12: 12.20 | CF12: 27.45 | CG12: 5.49 | CH12: 61.00 | CI12: 56.38 | CJ12: 13.20 | CK12: 56.37878788 | CL12: 0.55 | CM12: 0.45 | CN12: 13.2 | CO12: 56.00 | CP12: 13.20 | CQ12: 24.00 | CR12: 0.90 | CS12: 12.20 | CT12: 27.45 | CU12: 5.49 | CV12: 61.00 | CW12: 56.38 | CX12: 13.20 | CY12: 56.37878788 | DA12: 0.45 | DB12: 13.2 | DC12: 56.00 | DD12: 13.20 | DE12: 24.00 | DF12: 0.90 | DG12: 12.20 | DH12: 27.45 | DI12: 5.49 | DJ12: 61.00 | DK12: 56.38 | DL12: 13.20 | DM12: 56.37878788 | DO12: 0.45 | DP12: 13.2 | DQ12: 74.00 | DR12: 15.00 | DS12: 24.00 | DT12: 9.00 | DU12: 14.00 | DV12: 31.50 | DW12: 6.30 | DX12: 70.00 | DY12: 74.24 | DZ12: 13.20 | EA12: 74.24242424 | EC12: 0.45 | ED12: 13.2 | EE12: 74.00 | EF12: 15.00 | EG12: 24.00 | EH12: 9.00 | EI12: 74.24 | EJ12: 13.20 | EK12: 74.24242424 | EM12: 0.45 | EN12: 13.2 | EO12: 74.00 | EP12: 15.00 | EQ12: 24.00 | ER12: 9.00 | ES12: 14.00 | ET12: 31.50 | EU12: 6.30 | EV12: 70.00 | EW12: 74.24 | EX12: 13.20 | EY12: 74.24242424 | FA12: 0.45 | FB12: 13.2 | FC12: 74.00 | FD12: 15.00 | FE12: 24.00 | FF12: 9.00 | FG12: 14.00 | FH12: 31.50 | FI12: 6.30 | FJ12: 70.00 | FK12: 74.24 | FL12: 13.20 | FM12: 74.24242424 | FO12: 0.45 | FP12: 13.2 | FQ12: 74.00 | FR12: 15.00 | FS12: 24.00 | FT12: 9.00 | FU12: 74.24 | FV12: 13.20 | FW12: 74.24242424
A13: 0.50 | B13: 223.61 | C13: 500.00 | D13: 0.22 | E13: 225.00 | F13: 625.00 | G13: 125.00 | H13: 312.50 | I13: 250.00 | J13: 500.00 | K13: 223.61 | L13: 0.50 | M13: 223.61 | N13: 500.00 | O13: 0.22 | P13: 225.00 | Q13: 625.00 | R13: 125.00 | S13: 312.50 | T13: 250.00 | Y13: 0.50 | Z13: 12.0 | AA13: 62.00 | AB13: 14.00 | AC13: 24.00 | AD13: 1.00 | AE13: 12.20 | AF13: 30.50 | AG13: 6.10 | AH13: 61.00 | AI13: 62.02 | AJ13: 12.00 | AK13: 62.01666667 | AM13: 0.50 | AN13: 12.0 | AO13: 62.00 | AP13: 14.00 | AQ13: 24.00 | AR13: 1.00 | AS13: 12.20 | AT13: 30.50 | AU13: 6.10 | AV13: 61.00 | AW13: 62.02 | AX13: 12.00 | AY13: 62.01666667 | BA13: 0.50 | BB13: 12.0 | BC13: 62.00 | BD13: 14.00 | BE13: 24.00 | BF13: 1.00 | BG13: 12.20 | BH13: 30.50 | BI13: 6.10 | BJ13: 61.00 | BK13: 62.02 | BL13: 12.00 | BM13: 62.01666667 | BO13: 0.50 | BP13: 12.0 | BQ13: 80.00 | BR13: 14.00 | BS13: 24.00 | BT13: 10.00 | BU13: 62.02 | BV13: 12.00 | BW13: 62.01666667 | BX13: 0.50 | BY13: 0.50 | BZ13: 12.0 | CA13: 62.00 | CB13: 12.00 | CC13: 24.00 | CD13: 1.00 | CE13: 12.20 | CF13: 30.50 | CG13: 6.10 | CH13: 61.00 | CI13: 62.02 | CJ13: 12.00 | CK13: 62.01666667 | CL13: 0.50 | CM13: 0.50 | CN13: 12.0 | CO13: 62.00 | CP13: 12.00 | CQ13: 24.00 | CR13: 1.00 | CS13: 12.20 | CT13: 30.50 | CU13: 6.10 | CV13: 61.00 | CW13: 62.02 | CX13: 12.00 | CY13: 62.01666667 | DA13: 0.50 | DB13: 12.0 | DC13: 62.00 | DD13: 12.00 | DE13: 24.00 | DF13: 1.00 | DG13: 12.20 | DH13: 30.50 | DI13: 6.10 | DJ13: 61.00 | DK13: 62.02 | DL13: 12.00 | DM13: 62.01666667 | DO13: 0.50 | DP13: 12.0 | DQ13: 80.00 | DR13: 14.00 | DS13: 24.00 | DT13: 10.00 | DU13: 14.00 | DV13: 35.00 | DW13: 7.00 | DX13: 70.00 | DY13: 81.67 | DZ13: 12.00 | EA13: 81.66666667 | EC13: 0.50 | ED13: 12.0 | EE13: 80.00 | EF13: 14.00 | EG13: 24.00 | EH13: 10.00 | EI13: 81.67 | EJ13: 12.00 | EK13: 81.66666667 | EM13: 0.50 | EN13: 12.0 | EO13: 80.00 | EP13: 14.00 | EQ13: 24.00 | ER13: 10.00 | ES13: 14.00 | ET13: 35.00 | EU13: 7.00 | EV13: 70.00 | EW13: 81.67 | EX13: 12.00 | EY13: 81.66666667 | FA13: 0.50 | FB13: 12.0 | FC13: 80.00 | FD13: 14.00 | FE13: 24.00 | FF13: 10.00 | FG13: 14.00 | FH13: 35.00 | FI13: 7.00 | FJ13: 70.00 | FK13: 81.67 | FL13: 12.00 | FM13: 81.66666667 | FO13: 0.50 | FP13: 12.0 | FQ13: 80.00 | FR13: 14.00 | FS13: 24.00 | FT13: 10.00 | FU13: 81.67 | FV13: 12.00 | FW13: 81.66666667
A14: 0.55 | B14: 234.52 | C14: 550.00 | D14: 0.21 | E14: 235.00 | F14: 625.00 | G14: 137.50 | H14: 343.75 | I14: 250.00 | J14: 550.00 | K14: 234.52 | L14: 0.55 | M14: 234.52 | N14: 550.00 | O14: 0.21 | P14: 235.00 | Q14: 625.00 | R14: 137.50 | S14: 343.75 | T14: 250.00 | Y14: 0.55 | Z14: 10.8 | AA14: 68.00 | AB14: 13.00 | AC14: 24.00 | AD14: 1.10 | AE14: 12.20 | AF14: 33.55 | AG14: 6.71 | AH14: 61.00 | AI14: 68.91 | AJ14: 10.80 | AK14: 68.90740741 | AM14: 0.55 | AN14: 10.8 | AO14: 68.00 | AP14: 13.00 | AQ14: 24.00 | AR14: 1.10 | AS14: 12.20 | AT14: 33.55 | AU14: 6.71 | AV14: 61.00 | AW14: 68.91 | AX14: 10.80 | AY14: 68.90740741 | BA14: 0.55 | BB14: 10.8 | BC14: 68.00 | BD14: 13.00 | BE14: 24.00 | BF14: 1.10 | BG14: 12.20 | BH14: 33.55 | BI14: 6.71 | BJ14: 61.00 | BK14: 68.91 | BL14: 10.80 | BM14: 68.90740741 | BO14: 0.55 | BP14: 10.8 | BQ14: 86.00 | BR14: 13.00 | BS14: 24.00 | BT14: 11.00 | BU14: 68.91 | BV14: 10.80 | BW14: 68.90740741 | BX14: 0.45 | BY14: 0.55 | BZ14: 10.8 | CA14: 68.00 | CB14: 10.80 | CC14: 24.00 | CD14: 1.10 | CE14: 12.20 | CF14: 33.55 | CG14: 6.71 | CH14: 61.00 | CI14: 68.91 | CJ14: 10.80 | CK14: 68.90740741 | CL14: 0.45 | CM14: 0.55 | CN14: 10.8 | CO14: 68.00 | CP14: 10.80 | CQ14: 24.00 | CR14: 1.10 | CS14: 12.20 | CT14: 33.55 | CU14: 6.71 | CV14: 61.00 | CW14: 68.91 | CX14: 10.80 | CY14: 68.90740741 | DA14: 0.55 | DB14: 10.8 | DC14: 68.00 | DD14: 10.80 | DE14: 24.00 | DF14: 1.10 | DG14: 12.20 | DH14: 33.55 | DI14: 6.71 | DJ14: 61.00 | DK14: 68.91 | DL14: 10.80 | DM14: 68.90740741 | DO14: 0.55 | DP14: 10.8 | DQ14: 86.00 | DR14: 13.00 | DS14: 24.00 | DT14: 11.00 | DU14: 14.00 | DV14: 38.50 | DW14: 7.70 | DX14: 70.00 | DY14: 90.74 | DZ14: 10.80 | EA14: 90.74074074 | EC14: 0.55 | ED14: 10.8 | EE14: 86.00 | EF14: 13.00 | EG14: 24.00 | EH14: 11.00 | EI14: 90.74 | EJ14: 10.80 | EK14: 90.74074074 | EM14: 0.55 | EN14: 10.8 | EO14: 86.00 | EP14: 13.00 | EQ14: 24.00 | ER14: 11.00 | ES14: 14.00 | ET14: 38.50 | EU14: 7.70 | EV14: 70.00 | EW14: 90.74 | EX14: 10.80 | EY14: 90.74074074 | FA14: 0.55 | FB14: 10.8 | FC14: 86.00 | FD14: 13.00 | FE14: 24.00 | FF14: 11.00 | FG14: 14.00 | FH14: 38.50 | FI14: 7.70 | FJ14: 70.00 | FK14: 90.74 | FL14: 10.80 | FM14: 90.74074074 | FO14: 0.55 | FP14: 10.8 | FQ14: 86.00 | FR14: 13.00 | FS14: 24.00 | FT14: 11.00 | FU14: 90.74 | FV14: 10.80 | FW14: 90.74074074
A15: 0.60 | B15: 244.95 | C15: 600.00 | D15: 0.20 | E15: 245.00 | F15: 625.00 | G15: 150.00 | H15: 375.00 | I15: 250.00 | J15: 600.00 | K15: 244.95 | L15: 0.60 | M15: 244.95 | N15: 600.00 | O15: 0.20 | P15: 245.00 | Q15: 625.00 | R15: 150.00 | S15: 375.00 | T15: 250.00 | Y15: 0.60 | Z15: 9.6 | AA15: 74.00 | AB15: 12.00 | AC15: 24.00 | AD15: 1.20 | AE15: 12.20 | AF15: 36.60 | AG15: 7.32 | AH15: 61.00 | AI15: 77.52 | AJ15: 9.60 | AK15: 77.52083333 | AM15: 0.60 | AN15: 9.6 | AO15: 74.00 | AP15: 12.00 | AQ15: 24.00 | AR15: 1.20 | AS15: 12.20 | AT15: 36.60 | AU15: 7.32 | AV15: 61.00 | AW15: 77.52 | AX15: 9.60 | AY15: 77.52083333 | BA15: 0.60 | BB15: 9.6 | BC15: 74.00 | BD15: 12.00 | BE15: 24.00 | BF15: 1.20 | BG15: 12.20 | BH15: 36.60 | BI15: 7.32 | BJ15: 61.00 | BK15: 77.52 | BL15: 9.60 | BM15: 77.52083333 | BO15: 0.60 | BP15: 9.6 | BQ15: 92.00 | BR15: 12.00 | BS15: 24.00 | BT15: 12.00 | BU15: 77.52 | BV15: 9.60 | BW15: 77.52083333 | BX15: 0.40 | BY15: 0.60 | BZ15: 9.6 | CA15: 74.00 | CB15: 9.60 | CC15: 24.00 | CD15: 1.20 | CE15: 12.20 | CF15: 36.60 | CG15: 7.32 | CH15: 61.00 | CI15: 77.52 | CJ15: 9.60 | CK15: 77.52083333 | CL15: 0.40 | CM15: 0.60 | CN15: 9.6 | CO15: 74.00 | CP15: 9.60 | CQ15: 24.00 | CR15: 1.20 | CS15: 12.20 | CT15: 36.60 | CU15: 7.32 | CV15: 61.00 | CW15: 77.52 | CX15: 9.60 | CY15: 77.52083333 | DA15: 0.60 | DB15: 9.6 | DC15: 74.00 | DD15: 9.60 | DE15: 24.00 | DF15: 1.20 | DG15: 12.20 | DH15: 36.60 | DI15: 7.32 | DJ15: 61.00 | DK15: 77.52 | DL15: 9.60 | DM15: 77.52083333 | DO15: 0.60 | DP15: 9.6 | DQ15: 92.00 | DR15: 12.00 | DS15: 24.00 | DT15: 12.00 | DU15: 14.00 | DV15: 42.00 | DW15: 8.40 | DX15: 70.00 | DY15: 102.08 | DZ15: 9.60 | EA15: 102.0833333 | EC15: 0.60 | ED15: 9.6 | EE15: 92.00 | EF15: 12.00 | EG15: 24.00 | EH15: 12.00 | EI15: 102.08 | EJ15: 9.60 | EK15: 102.0833333 | EM15: 0.60 | EN15: 9.6 | EO15: 92.00 | EP15: 12.00 | EQ15: 24.00 | ER15: 12.00 | ES15: 14.00 | ET15: 42.00 | EU15: 8.40 | EV15: 70.00 | EW15: 102.08 | EX15: 9.60 | EY15: 102.0833333 | FA15: 0.60 | FB15: 9.6 | FC15: 92.00 | FD15: 12.00 | FE15: 24.00 | FF15: 12.00 | FG15: 14.00 | FH15: 42.00 | FI15: 8.40 | FJ15: 70.00 | FK15: 102.08 | FL15: 9.60 | FM15: 102.0833333 | FO15: 0.60 | FP15: 9.6 | FQ15: 92.00 | FR15: 12.00 | FS15: 24.00 | FT15: 12.00 | FU15: 102.08 | FV15: 9.60 | FW15: 102.0833333
A16: 0.65 | B16: 254.95 | C16: 650.00 | D16: 0.20 | E16: 255.00 | F16: 625.00 | G16: 162.50 | H16: 406.25 | I16: 250.00 | J16: 650.00 | K16: 254.95 | L16: 0.65 | M16: 254.95 | N16: 650.00 | O16: 0.20 | P16: 255.00 | Q16: 625.00 | R16: 162.50 | S16: 406.25 | T16: 250.00 | Y16: 0.65 | Z16: 8.4 | AA16: 80.00 | AB16: 11.00 | AC16: 24.00 | AD16: 1.30 | AE16: 12.20 | AF16: 39.65 | AG16: 7.93 | AH16: 61.00 | AI16: 88.60 | AJ16: 8.40 | AK16: 88.5952381 | AM16: 0.65 | AN16: 8.4 | AO16: 80.00 | AP16: 11.00 | AQ16: 24.00 | AR16: 1.30 | AS16: 12.20 | AT16: 39.65 | AU16: 7.93 | AV16: 61.00 | AW16: 88.60 | AX16: 8.40 | AY16: 88.5952381 | BA16: 0.65 | BB16: 8.4 | BC16: 80.00 | BD16: 11.00 | BE16: 24.00 | BF16: 1.30 | BG16: 12.20 | BH16: 39.65 | BI16: 7.93 | BJ16: 61.00 | BK16: 88.60 | BL16: 8.40 | BM16: 88.5952381 | BO16: 0.65 | BP16: 8.4 | BQ16: 98.00 | BR16: 11.00 | BS16: 24.00 | BT16: 13.00 | BU16: 88.60 | BV16: 8.40 | BW16: 88.5952381 | BX16: 0.35 | BY16: 0.65 | BZ16: 8.4 | CA16: 80.00 | CB16: 8.40 | CC16: 24.00 | CD16: 1.30 | CE16: 12.20 | CF16: 39.65 | CG16: 7.93 | CH16: 61.00 | CI16: 88.60 | CJ16: 8.40 | CK16: 88.5952381 | CL16: 0.35 | CM16: 0.65 | CN16: 8.4 | CO16: 80.00 | CP16: 8.40 | CQ16: 24.00 | CR16: 1.30 | CS16: 12.20 | CT16: 39.65 | CU16: 7.93 | CV16: 61.00 | CW16: 88.60 | CX16: 8.40 | CY16: 88.5952381 | DA16: 0.65 | DB16: 8.4 | DC16: 80.00 | DD16: 8.40 | DE16: 24.00 | DF16: 1.30 | DG16: 12.20 | DH16: 39.65 | DI16: 7.93 | DJ16: 61.00 | DK16: 88.60 | DL16: 8.40 | DM16: 88.5952381 | DO16: 0.65 | DP16: 8.4 | DQ16: 98.00 | DR16: 11.00 | DS16: 24.00 | DT16: 13.00 | DU16: 14.00 | DV16: 45.50 | DW16: 9.10 | DX16: 70.00 | DY16: 116.67 | DZ16: 8.40 | EA16: 116.6666667 | EC16: 0.65 | ED16: 8.4 | EE16: 98.00 | EF16: 11.00 | EG16: 24.00 | EH16: 13.00 | EI16: 116.67 | EJ16: 8.40 | EK16: 116.6666667 | EM16: 0.65 | EN16: 8.4 | EO16: 98.00 | EP16: 11.00 | EQ16: 24.00 | ER16: 13.00 | ES16: 14.00 | ET16: 45.50 | EU16: 9.10 | EV16: 70.00 | EW16: 116.67 | EX16: 8.40 | EY16: 116.6666667 | FA16: 0.65 | FB16: 8.4 | FC16: 98.00 | FD16: 11.00 | FE16: 24.00 | FF16: 13.00 | FG16: 14.00 | FH16: 45.50 | FI16: 9.10 | FJ16: 70.00 | FK16: 116.67 | FL16: 8.40 | FM16: 116.6666667 | FO16: 0.65 | FP16: 8.4 | FQ16: 98.00 | FR16: 11.00 | FS16: 24.00 | FT16: 13.00 | FU16: 116.67 | FV16: 8.40 | FW16: 116.6666667
A17: 0.70 | B17: 264.58 | C17: 700.00 | D17: 0.19 | E17: 265.00 | F17: 625.00 | G17: 175.00 | H17: 437.50 | I17: 250.00 | J17: 700.00 | K17: 264.58 | L17: 0.70 | M17: 264.58 | N17: 700.00 | O17: 0.19 | P17: 265.00 | Q17: 625.00 | R17: 175.00 | S17: 437.50 | T17: 250.00 | Y17: 0.70 | Z17: 7.2 | AA17: 86.00 | AB17: 10.00 | AC17: 24.00 | AD17: 1.40 | AE17: 12.20 | AF17: 42.70 | AG17: 8.54 | AH17: 61.00 | AI17: 103.36 | AJ17: 7.20 | AK17: 103.3611111 | AM17: 0.70 | AN17: 7.2 | AO17: 86.00 | AP17: 10.00 | AQ17: 24.00 | AR17: 1.40 | AS17: 12.20 | AT17: 42.70 | AU17: 8.54 | AV17: 61.00 | AW17: 103.36 | AX17: 7.20 | AY17: 103.3611111 | BA17: 0.70 | BB17: 7.2 | BC17: 86.00 | BD17: 10.00 | BE17: 24.00 | BF17: 1.40 | BG17: 12.20 | BH17: 42.70 | BI17: 8.54 | BJ17: 61.00 | BK17: 103.36 | BL17: 7.20 | BM17: 103.3611111 | BO17: 0.70 | BP17: 7.2 | BQ17: 104.00 | BR17: 10.00 | BS17: 24.00 | BT17: 14.00 | BU17: 103.36 | BV17: 7.20 | BW17: 103.3611111 | BX17: 0.30 | BY17: 0.70 | BZ17: 7.2 | CA17: 86.00 | CB17: 7.20 | CC17: 24.00 | CD17: 1.40 | CE17: 12.20 | CF17: 42.70 | CG17: 8.54 | CH17: 61.00 | CI17: 103.36 | CJ17: 7.20 | CK17: 103.3611111 | CL17: 0.30 | CM17: 0.70 | CN17: 7.2 | CO17: 86.00 | CP17: 7.20 | CQ17: 24.00 | CR17: 1.40 | CS17: 12.20 | CT17: 42.70 | CU17: 8.54 | CV17: 61.00 | CW17: 103.36 | CX17: 7.20 | CY17: 103.3611111 | DA17: 0.70 | DB17: 7.2 | DC17: 86.00 | DD17: 7.20 | DE17: 24.00 | DF17: 1.40 | DG17: 12.20 | DH17: 42.70 | DI17: 8.54 | DJ17: 61.00 | DK17: 103.36 | DL17: 7.20 | DM17: 103.3611111 | DO17: 0.70 | DP17: 7.2 | DQ17: 104.00 | DR17: 10.00 | DS17: 24.00 | DT17: 14.00 | DU17: 14.00 | DV17: 49.00 | DW17: 9.80 | DX17: 70.00 | DY17: 136.11 | DZ17: 7.20 | EA17: 136.1111111 | EC17: 0.70 | ED17: 7.2 | EE17: 104.00 | EF17: 10.00 | EG17: 24.00 | EH17: 14.00 | EI17: 136.11 | EJ17: 7.20 | EK17: 136.1111111 | EM17: 0.70 | EN17: 7.2 | EO17: 104.00 | EP17: 10.00 | EQ17: 24.00 | ER17: 14.00 | ES17: 14.00 | ET17: 49.00 | EU17: 9.80 | EV17: 70.00 | EW17: 136.11 | EX17: 7.20 | EY17: 136.1111111 | FA17: 0.70 | FB17: 7.2 | FC17: 104.00 | FD17: 10.00 | FE17: 24.00 | FF17: 14.00 | FG17: 14.00 | FH17: 49.00 | FI17: 9.80 | FJ17: 70.00 | FK17: 136.11 | FL17: 7.20 | FM17: 136.1111111 | FO17: 0.70 | FP17: 7.2 | FQ17: 104.00 | FR17: 10.00 | FS17: 24.00 | FT17: 14.00 | FU17: 136.11 | FV17: 7.20 | FW17: 136.1111111
A18: 0.75 | B18: 273.86 | C18: 750.00 | D18: 0.18 | E18: 275.00 | F18: 625.00 | G18: 187.50 | H18: 468.75 | I18: 250.00 | J18: 750.00 | K18: 273.86 | L18: 0.75 | M18: 273.86 | N18: 750.00 | O18: 0.18 | P18: 275.00 | Q18: 625.00 | R18: 187.50 | S18: 468.75 | T18: 250.00 | Y18: 0.75 | Z18: 6.0 | AA18: 92.00 | AB18: 9.00 | AC18: 24.00 | AD18: 1.50 | AE18: 12.20 | AF18: 45.75 | AG18: 9.15 | AH18: 61.00 | AI18: 124.03 | AJ18: 7.20 | AK18: 103.3611111 | AM18: 0.75 | AN18: 6.0 | AO18: 92.00 | AP18: 9.00 | AQ18: 24.00 | AR18: 1.50 | AS18: 12.20 | AT18: 45.75 | AU18: 9.15 | AV18: 61.00 | AW18: 124.03 | AX18: 7.20 | AY18: 103.3611111 | BA18: 0.75 | BB18: 6.0 | BC18: 92.00 | BD18: 9.00 | BE18: 24.00 | BF18: 1.50 | BG18: 12.20 | BH18: 45.75 | BI18: 9.15 | BJ18: 61.00 | BK18: 124.03 | BL18: 7.20 | BM18: 103.3611111 | BO18: 0.75 | BP18: 6.0 | BQ18: 110.00 | BR18: 9.00 | BS18: 24.00 | BT18: 15.00 | BU18: 124.03 | BV18: 7.20 | BW18: 103.3611111 | BX18: 0.25 | BY18: 0.75 | BZ18: 6.0 | CA18: 92.00 | CB18: 6.00 | CC18: 24.00 | CD18: 1.50 | CE18: 12.20 | CF18: 45.75 | CG18: 9.15 | CH18: 61.00 | CI18: 124.03 | CJ18: 7.20 | CK18: 103.3611111 | CL18: 0.25 | CM18: 0.75 | CN18: 6.0 | CO18: 92.00 | CP18: 6.00 | CQ18: 24.00 | CR18: 1.50 | CS18: 12.20 | CT18: 45.75 | CU18: 9.15 | CV18: 61.00 | CW18: 124.03 | CX18: 7.20 | CY18: 103.3611111 | DA18: 0.75 | DB18: 6.0 | DC18: 92.00 | DD18: 6.00 | DE18: 24.00 | DF18: 1.50 | DG18: 12.20 | DH18: 45.75 | DI18: 9.15 | DJ18: 61.00 | DK18: 124.03 | DL18: 7.20 | DM18: 103.3611111 | DO18: 0.75 | DP18: 6.0 | DQ18: 110.00 | DR18: 9.00 | DS18: 24.00 | DT18: 15.00 | DU18: 14.00 | DV18: 52.50 | DW18: 10.50 | DX18: 70.00 | DY18: 163.33 | DZ18: 7.20 | EA18: 136.1111111 | EC18: 0.75 | ED18: 6.0 | EE18: 110.00 | EF18: 9.00 | EG18: 24.00 | EH18: 15.00 | EI18: 163.33 | EJ18: 7.20 | EK18: 136.1111111 | EM18: 0.75 | EN18: 6.0 | EO18: 110.00 | EP18: 9.00 | EQ18: 24.00 | ER18: 15.00 | ES18: 14.00 | ET18: 52.50 | EU18: 10.50 | EV18: 70.00 | EW18: 163.33 | EX18: 7.20 | EY18: 136.1111111 | FA18: 0.75 | FB18: 6.0 | FC18: 110.00 | FD18: 9.00 | FE18: 24.00 | FF18: 15.00 | FG18: 14.00 | FH18: 52.50 | FI18: 10.50 | FJ18: 70.00 | FK18: 163.33 | FL18: 7.20 | FM18: 136.1111111 | FO18: 0.75 | FP18: 6.0 | FQ18: 110.00 | FR18: 9.00 | FS18: 24.00 | FT18: 15.00 | FU18: 163.33 | FV18: 7.20 | FW18: 136.1111111
A19: 0.80 | B19: 282.84 | C19: 800.00 | D19: 0.18 | E19: 285.00 | F19: 625.00 | G19: 200.00 | H19: 500.00 | I19: 250.00 | J19: 800.00 | K19: 282.84 | L19: 0.80 | M19: 282.84 | N19: 800.00 | O19: 0.18 | P19: 285.00 | Q19: 625.00 | R19: 200.00 | S19: 500.00 | T19: 250.00 | Y19: 0.80 | Z19: 4.8 | AA19: 98.00 | AB19: 8.00 | AC19: 24.00 | AD19: 1.60 | AE19: 12.20 | AF19: 48.80 | AG19: 9.76 | AH19: 61.00 | AI19: 155.04 | AJ19: 7.20 | AK19: 103.3611111 | AM19: 0.80 | AN19: 4.8 | AO19: 98.00 | AP19: 8.00 | AQ19: 24.00 | AR19: 1.60 | AS19: 12.20 | AT19: 48.80 | AU19: 9.76 | AV19: 61.00 | AW19: 155.04 | AX19: 7.20 | AY19: 103.3611111 | BA19: 0.80 | BB19: 4.8 | BC19: 98.00 | BD19: 8.00 | BE19: 24.00 | BF19: 1.60 | BG19: 12.20 | BH19: 48.80 | BI19: 9.76 | BJ19: 61.00 | BK19: 155.04 | BL19: 7.20 | BM19: 103.3611111 | BO19: 0.80 | BP19: 4.8 | BQ19: 116.00 | BR19: 8.00 | BS19: 24.00 | BT19: 16.00 | BU19: 155.04 | BV19: 7.20 | BW19: 103.3611111 | BX19: 0.20 | BY19: 0.80 | BZ19: 4.8 | CA19: 98.00 | CB19: 4.80 | CC19: 24.00 | CD19: 1.60 | CE19: 12.20 | CF19: 48.80 | CG19: 9.76 | CH19: 61.00 | CI19: 155.04 | CJ19: 7.20 | CK19: 103.3611111 | CL19: 0.20 | CM19: 0.80 | CN19: 4.8 | CO19: 98.00 | CP19: 4.80 | CQ19: 24.00 | CR19: 1.60 | CS19: 12.20 | CT19: 48.80 | CU19: 9.76 | CV19: 61.00 | CW19: 155.04 | CX19: 7.20 | CY19: 103.3611111 | DA19: 0.80 | DB19: 4.8 | DC19: 98.00 | DD19: 4.80 | DE19: 24.00 | DF19: 1.60 | DG19: 12.20 | DH19: 48.80 | DI19: 9.76 | DJ19: 61.00 | DK19: 155.04 | DL19: 7.20 | DM19: 103.3611111 | DO19: 0.80 | DP19: 4.8 | DQ19: 116.00 | DR19: 8.00 | DS19: 24.00 | DT19: 16.00 | DU19: 14.00 | DV19: 56.00 | DW19: 11.20 | DX19: 70.00 | DY19: 204.17 | DZ19: 7.20 | EA19: 136.1111111 | EC19: 0.80 | ED19: 4.8 | EE19: 116.00 | EF19: 8.00 | EG19: 24.00 | EH19: 16.00 | EI19: 204.17 | EJ19: 7.20 | EK19: 136.1111111 | EM19: 0.80 | EN19: 4.8 | EO19: 116.00 | EP19: 8.00 | EQ19: 24.00 | ER19: 16.00 | ES19: 14.00 | ET19: 56.00 | EU19: 11.20 | EV19: 70.00 | EW19: 204.17 | EX19: 7.20 | EY19: 136.1111111 | FA19: 0.80 | FB19: 4.8 | FC19: 116.00 | FD19: 8.00 | FE19: 24.00 | FF19: 16.00 | FG19: 14.00 | FH19: 56.00 | FI19: 11.20 | FJ19: 70.00 | FK19: 204.17 | FL19: 7.20 | FM19: 136.1111111 | FO19: 0.80 | FP19: 4.8 | FQ19: 116.00 | FR19: 8.00 | FS19: 24.00 | FT19: 16.00 | FU19: 204.17 | FV19: 7.20 | FW19: 136.1111111
A20: 0.85 | B20: 291.55 | C20: 850.00 | D20: 0.17 | E20: 295.00 | F20: 625.00 | G20: 212.50 | H20: 531.25 | I20: 250.00 | J20: 850.00 | K20: 291.55 | L20: 0.85 | M20: 291.55 | N20: 850.00 | O20: 0.17 | P20: 295.00 | Q20: 625.00 | R20: 212.50 | S20: 531.25 | T20: 250.00 | Y20: 0.85 | Z20: 3.6 | AA20: 104.00 | AB20: 7.00 | AC20: 24.00 | AD20: 1.70 | AE20: 12.20 | AF20: 51.85 | AG20: 10.37 | AH20: 61.00 | AI20: 206.72 | AJ20: 7.20 | AK20: 103.3611111 | AM20: 0.85 | AN20: 3.6 | AO20: 104.00 | AP20: 7.00 | AQ20: 24.00 | AR20: 1.70 | AS20: 12.20 | AT20: 51.85 | AU20: 10.37 | AV20: 61.00 | AW20: 206.72 | AX20: 7.20 | AY20: 103.3611111 | BA20: 0.85 | BB20: 3.6 | BC20: 104.00 | BD20: 7.00 | BE20: 24.00 | BF20: 1.70 | BG20: 12.20 | BH20: 51.85 | BI20: 10.37 | BJ20: 61.00 | BK20: 206.72 | BL20: 7.20 | BM20: 103.3611111 | BO20: 0.85 | BP20: 3.6 | BQ20: 122.00 | BR20: 7.00 | BS20: 24.00 | BT20: 17.00 | BU20: 206.72 | BV20: 7.20 | BW20: 103.3611111 | BX20: 0.15 | BY20: 0.85 | BZ20: 3.6 | CA20: 104.00 | CB20: 3.60 | CC20: 24.00 | CD20: 1.70 | CE20: 12.20 | CF20: 51.85 | CG20: 10.37 | CH20: 61.00 | CI20: 206.72 | CJ20: 7.20 | CK20: 103.3611111 | CL20: 0.15 | CM20: 0.85 | CN20: 3.6 | CO20: 104.00 | CP20: 3.60 | CQ20: 24.00 | CR20: 1.70 | CS20: 12.20 | CT20: 51.85 | CU20: 10.37 | CV20: 61.00 | CW20: 206.72 | CX20: 7.20 | CY20: 103.3611111 | DA20: 0.85 | DB20: 3.6 | DC20: 104.00 | DD20: 3.60 | DE20: 24.00 | DF20: 1.70 | DG20: 12.20 | DH20: 51.85 | DI20: 10.37 | DJ20: 61.00 | DK20: 206.72 | DL20: 7.20 | DM20: 103.3611111 | DO20: 0.85 | DP20: 3.6 | DQ20: 122.00 | DR20: 7.00 | DS20: 24.00 | DT20: 17.00 | DU20: 14.00 | DV20: 59.50 | DW20: 11.90 | DX20: 70.00 | DY20: 272.22 | DZ20: 7.20 | EA20: 136.1111111 | EC20: 0.85 | ED20: 3.6 | EE20: 122.00 | EF20: 7.00 | EG20: 24.00 | EH20: 17.00 | EI20: 272.22 | EJ20: 7.20 | EK20: 136.1111111 | EM20: 0.85 | EN20: 3.6 | EO20: 122.00 | EP20: 7.00 | EQ20: 24.00 | ER20: 17.00 | ES20: 14.00 | ET20: 59.50 | EU20: 11.90 | EV20: 70.00 | EW20: 272.22 | EX20: 7.20 | EY20: 136.1111111 | FA20: 0.85 | FB20: 3.6 | FC20: 122.00 | FD20: 7.00 | FE20: 24.00 | FF20: 17.00 | FG20: 14.00 | FH20: 59.50 | FI20: 11.90 | FJ20: 70.00 | FK20: 272.22 | FL20: 7.20 | FM20: 136.1111111 | FO20: 0.85 | FP20: 3.6 | FQ20: 122.00 | FR20: 7.00 | FS20: 24.00 | FT20: 17.00 | FU20: 272.22 | FV20: 7.20 | FW20: 136.1111111
A21: 0.90 | B21: 300.00 | C21: 900.00 | D21: 0.17 | E21: 305.00 | F21: 625.00 | G21: 225.00 | H21: 562.50 | I21: 250.00 | J21: 900.00 | K21: 300.00 | L21: 0.90 | M21: 300.00 | N21: 900.00 | O21: 0.17 | P21: 305.00 | Q21: 625.00 | R21: 225.00 | S21: 562.50 | T21: 250.00 | Y21: 0.90 | Z21: 2.4 | AA21: 110.00 | AB21: 6.00 | AC21: 24.00 | AD21: 1.80 | AE21: 12.20 | AF21: 54.90 | AG21: 10.98 | AH21: 61.00 | AI21: 310.08 | AJ21: 7.20 | AK21: 103.3611111 | AM21: 0.90 | AN21: 2.4 | AO21: 110.00 | AP21: 6.00 | AQ21: 24.00 | AR21: 1.80 | AS21: 12.20 | AT21: 54.90 | AU21: 10.98 | AV21: 61.00 | AW21: 310.08 | AX21: 7.20 | AY21: 103.3611111 | BA21: 0.90 | BB21: 2.4 | BC21: 110.00 | BD21: 6.00 | BE21: 24.00 | BF21: 1.80 | BG21: 12.20 | BH21: 54.90 | BI21: 10.98 | BJ21: 61.00 | BK21: 310.08 | BL21: 7.20 | BM21: 103.3611111 | BO21: 0.90 | BP21: 2.4 | BQ21: 128.00 | BR21: 6.00 | BS21: 24.00 | BT21: 18.00 | BU21: 310.08 | BV21: 7.20 | BW21: 103.3611111 | BX21: 0.10 | BY21: 0.90 | BZ21: 2.4 | CA21: 110.00 | CB21: 2.40 | CC21: 24.00 | CD21: 1.80 | CE21: 12.20 | CF21: 54.90 | CG21: 10.98 | CH21: 61.00 | CI21: 310.08 | CJ21: 7.20 | CK21: 103.3611111 | CL21: 0.10 | CM21: 0.90 | CN21: 2.4 | CO21: 110.00 | CP21: 2.40 | CQ21: 24.00 | CR21: 1.80 | CS21: 12.20 | CT21: 54.90 | CU21: 10.98 | CV21: 61.00 | CW21: 310.08 | CX21: 7.20 | CY21: 103.3611111 | DA21: 0.90 | DB21: 2.4 | DC21: 110.00 | DD21: 2.40 | DE21: 24.00 | DF21: 1.80 | DG21: 12.20 | DH21: 54.90 | DI21: 10.98 | DJ21: 61.00 | DK21: 310.08 | DL21: 7.20 | DM21: 103.3611111 | DO21: 0.90 | DP21: 2.4 | DQ21: 128.00 | DR21: 6.00 | DS21: 24.00 | DT21: 18.00 | DU21: 14.00 | DV21: 63.00 | DW21: 12.60 | DX21: 70.00 | DY21: 408.33 | DZ21: 7.20 | EA21: 136.1111111 | EC21: 0.90 | ED21: 2.4 | EE21: 128.00 | EF21: 6.00 | EG21: 24.00 | EH21: 18.00 | EI21: 408.33 | EJ21: 7.20 | EK21: 136.1111111 | EM21: 0.90 | EN21: 2.4 | EO21: 128.00 | EP21: 6.00 | EQ21: 24.00 | ER21: 18.00 | ES21: 14.00 | ET21: 63.00 | EU21: 12.60 | EV21: 70.00 | EW21: 408.33 | EX21: 7.20 | EY21: 136.1111111 | FA21: 0.90 | FB21: 2.4 | FC21: 128.00 | FD21: 6.00 | FE21: 24.00 | FF21: 18.00 | FG21: 14.00 | FH21: 63.00 | FI21: 12.60 | FJ21: 70.00 | FK21: 408.33 | FL21: 7.20 | FM21: 136.1111111 | FO21: 0.90 | FP21: 2.4 | FQ21: 128.00 | FR21: 6.00 | FS21: 24.00 | FT21: 18.00 | FU21: 408.33 | FV21: 7.20 | FW21: 136.1111111
A22: 0.95 | B22: 308.22 | C22: 950.00 | D22: 0.16 | E22: 315.00 | F22: 625.00 | G22: 237.50 | H22: 593.75 | I22: 250.00 | J22: 950.00 | K22: 308.22 | L22: 0.95 | M22: 308.22 | N22: 950.00 | O22: 0.16 | P22: 315.00 | Q22: 625.00 | R22: 237.50 | S22: 593.75 | T22: 250.00 | Y22: 0.95 | Z22: 1.2 | AA22: 116.00 | AB22: 5.00 | AC22: 24.00 | AD22: 1.90 | AE22: 12.20 | AF22: 57.95 | AG22: 11.59 | AH22: 61.00 | AI22: 620.17 | AJ22: 7.20 | AK22: 103.3611111 | AM22: 0.95 | AN22: 1.2 | AO22: 116.00 | AP22: 5.00 | AQ22: 24.00 | AR22: 1.90 | AS22: 12.20 | AT22: 57.95 | AU22: 11.59 | AV22: 61.00 | AW22: 620.17 | AX22: 7.20 | AY22: 103.3611111 | BA22: 0.95 | BB22: 1.2 | BC22: 116.00 | BD22: 5.00 | BE22: 24.00 | BF22: 1.90 | BG22: 12.20 | BH22: 57.95 | BI22: 11.59 | BJ22: 61.00 | BK22: 620.17 | BL22: 7.20 | BM22: 103.3611111 | BO22: 0.95 | BP22: 1.2 | BQ22: 134.00 | BR22: 5.00 | BS22: 24.00 | BT22: 19.00 | BU22: 620.17 | BV22: 7.20 | BW22: 103.3611111 | BX22: 0.05 | BY22: 0.95 | BZ22: 1.2 | CA22: 116.00 | CB22: 1.20 | CC22: 24.00 | CD22: 1.90 | CE22: 12.20 | CF22: 57.95 | CG22: 11.59 | CH22: 61.00 | CI22: 620.17 | CJ22: 7.20 | CK22: 103.3611111 | CL22: 0.05 | CM22: 0.95 | CN22: 1.2 | CO22: 116.00 | CP22: 1.20 | CQ22: 24.00 | CR22: 1.90 | CS22: 12.20 | CT22: 57.95 | CU22: 11.59 | CV22: 61.00 | CW22: 620.17 | CX22: 7.20 | CY22: 103.3611111 | DA22: 0.95 | DB22: 1.2 | DC22: 116.00 | DD22: 1.20 | DE22: 24.00 | DF22: 1.90 | DG22: 12.20 | DH22: 57.95 | DI22: 11.59 | DJ22: 61.00 | DK22: 620.17 | DL22: 7.20 | DM22: 103.3611111 | DO22: 0.95 | DP22: 1.2 | DQ22: 134.00 | DR22: 5.00 | DS22: 24.00 | DT22: 19.00 | DU22: 14.00 | DV22: 66.50 | DW22: 13.30 | DX22: 70.00 | DY22: 816.67 | DZ22: 7.20 | EA22: 136.1111111 | EC22: 0.95 | ED22: 1.2 | EE22: 134.00 | EF22: 5.00 | EG22: 24.00 | EH22: 19.00 | EI22: 816.67 | EJ22: 7.20 | EK22: 136.1111111 | EM22: 0.95 | EN22: 1.2 | EO22: 134.00 | EP22: 5.00 | EQ22: 24.00 | ER22: 19.00 | ES22: 14.00 | ET22: 66.50 | EU22: 13.30 | EV22: 70.00 | EW22: 816.67 | EX22: 7.20 | EY22: 136.1111111 | FA22: 0.95 | FB22: 1.2 | FC22: 134.00 | FD22: 5.00 | FE22: 24.00 | FF22: 19.00 | FG22: 14.00 | FH22: 66.50 | FI22: 13.30 | FJ22: 70.00 | FK22: 816.67 | FL22: 7.20 | FM22: 136.1111111 | FO22: 0.95 | FP22: 1.2 | FQ22: 134.00 | FR22: 5.00 | FS22: 24.00 | FT22: 19.00 | FU22: 816.67 | FV22: 7.20 | FW22: 136.1111111
A23: 1.00 | B23: 316.23 | C23: 1,000.00 | D23: 0.16 | E23: 325.00 | F23: 625.00 | G23: 250.00 | H23: 625.00 | I23: 250.00 | J23: 1,000.00 | K23: 316.23 | L23: 1.00 | M23: =N$28*(N23^(N$30))*(N$32^(N$33)) -> 316.23 | N23: 1,000.00 | O23: 0.16 | P23: =((P$27/P$28)+(P$33*P$34)/P$28)+((P$30/P$28)*N23) -> 325.00 | Q23: 625.00 | R23: 250.00 | S23: 625.00 | T23: 250.00 | Y23: 1.00 | Z23: =$AA$37-($AA$37*Y23) -> 0.0 | AA23: =(($AA$34+($AA$35*$AA$37))/$AA$36)-(($AA$35/$AA$36)*(Z23)) -> 122.00 | AB23: 4.00 | AC23: 24.00 | AD23: =$AA$3*Y23 -> 2.00 | AE23: 12.20 | AF23: 61.00 | AG23: 12.20 | AH23: 61.00 | AM23: 1.00 | AN23: 0.0 | AO23: 122.00 | AP23: 4.00 | AQ23: 24.00 | AR23: 2.00 | AS23: 12.20 | AT23: 61.00 | AU23: 12.20 | AV23: 61.00 | BA23: 1.00 | BB23: 0.0 | BC23: 122.00 | BD23: 4.00 | BE23: 24.00 | BF23: 2.00 | BG23: 12.20 | BH23: 61.00 | BI23: 12.20 | BJ23: 61.00 | BO23: 1.00 | BP23: 0.0 | BQ23: 140.00 | BR23: 4.00 | BS23: 24.00 | BT23: 20.00 | BX23: 0 | BY23: 1.00 | BZ23: =$CA$37-($CA$37*BY23) -> 0.0 | CA23: 122.00 | CB23: 0 | CC23: 24.00 | CD23: =($CA$34/$CA$36)*BY23 -> 2.00 | CE23: 12.20 | CF23: 61.00 | CG23: 12.20 | CH23: 61.00 | CL23: 0 | CM23: 1.00 | CN23: 0.0 | CO23: 122.00 | CP23: 0 | CQ23: 24.00 | CR23: 2.00 | CS23: 12.20 | CT23: 61.00 | CU23: 12.20 | CV23: 61.00 | DA23: 1.00 | DB23: 0.0 | DC23: 122.00 | DD23: 0 | DE23: 24.00 | DF23: 2.00 | DG23: 12.20 | DH23: 61.00 | DI23: 12.20 | DJ23: 61.00 | DO23: 1.00 | DP23: 0.0 | DQ23: 140.00 | DR23: 4.00 | DS23: 24.00 | DT23: 20.00 | DU23: 14.00 | DV23: 70.00 | DW23: 14.00 | DX23: 70.00 | EC23: 1.00 | ED23: 0.0 | EE23: 140.00 | EF23: 4.00 | EG23: 24.00 | EH23: 20.00 | EM23: 1.00 | EN23: 0.0 | EO23: 140.00 | EP23: 4.00 | EQ23: 24.00 | ER23: 20.00 | ES23: 14.00 | ET23: 70.00 | EU23: 14.00 | EV23: 70.00 | FA23: 1.00 | FB23: 0.0 | FC23: 140.00 | FD23: 4.00 | FE23: 24.00 | FF23: 20.00 | FG23: 14.00 | FH23: 70.00 | FI23: 14.00 | FJ23: 70.00 | FO23: 1.00 | FP23: 0.0 | FQ23: 140.00 | FR23: 4.00 | FS23: 24.00 | FT23: 20.00
P25: =((P$30/P$28)*N23) -> 200.000
B27: y | C27: =C28*(C29^(C30))*(C32^(C33)) -> 250.0 | D27: p | E27: =(E28*C27)-(E30*E32+E33*E34) -> 850.0 | M27: y | N27: =N28*(N29^(N30))*(N32^(N33)) -> 250.0 | O27: p | P27: =(P28*N27)-(P30*P32+P33*P34) -> 850.0 | Y27: o | Z27: =24-Z28 -> 11.8
B28: A | C28: =mlc_Demanda_Factor_Variable!C7 -> 1.0 | D28: p | E28: =mlc_Demanda_Factor_Variable!E7 -> 10.0 | F28: y | G28: =SUM(G29:G32) -> 250.0 | M28: A | N28: =C28 -> 1.0 | O28: p | P28: =mlc_Demanda_Factor_Variable!G7 -> 10.0 | Q28: y | R28: =SUM(R29:R32) -> 250.000 | Y28: q | Z28: =Z40*(((Z34+Z35*Z37))/Z35) -> 12.2
B29: x1 | C29: =E32 -> 625.0 | D29: y | E29: =((E28*C30)/E30)^(C30/(1-C30))*(E34)^(C33/(1-C30))*(C28^(1/(1-C30))) -> 250.0 | F29: p / P | G29: =E27/E28 -> 85.0 | M29: x1 | N29: =P32 -> 625.0 | O29: y | P29: =((P28*N30)/P30)^(N30/(1-N30))*(P34)^(N33/(1-N30))*(N28^(1/(1-N30))) -> 250.0 | Q29: p / P | R29: =P27/P28 -> 85.000 | Y29: c | Z29: =Z41*(((Z34+Z35*Z37))/Z36) -> 61 | DQ29: =DQ40*(((DQ34*DQ36)+(DQ35*DQ37))/DQ35) -> 14
B30: a | C30: =mlc_Demanda_Factor_Variable!C9 -> 0.5 | D30: w1 | E30: =mlc_Demanda_Factor_Variable!E8 -> 2.0 | F30: (w2 / P) * x2 | G30: =E33/E28*E34 -> 40.0 | M30: a | N30: =C30 -> 0.5 | O30: w1 | P30: =mlc_Demanda_Factor_Variable!G8 -> 2.0 | Q30: (w2 / P) * x2 | R30: =P33/P28*P34 -> 40.000 | Y30: Restricción presupuestaria | Z30: Caso 0.5 | AA30: Caso 1 | AB30: Caso 2 | AC30: Caso 3 | AD30: Caso 5 | BZ30: Restricción presupuestaria | CA30: Caso 1 | CN30: Restricción presupuestaria | CO30: Caso 1 | CP30: Caso 2 | DO30: Restricción presupuestaria | DP30: Caso 0.5 | DQ30: Caso 1 | DR30: Caso 2 | DS30: Caso 3 | DT30: Caso 5
Y31: q | Z31: =IF(Z32="Ocio Total","Trabajo nulo",Z37-Z32) -> 11.8 | AA31: =IF(AA32="Ocio Total","Trabajo nulo",AA37-AA32) -> 11.8 | AB31: =IF(AB32="Ocio Total","Trabajo nulo",AB37-AB32) -> 11.8 | AC31: =IF(AC32="Ocio Total","Trabajo nulo",AC37-AC32) -> 11.8 | AD31: =IF(AD32="Ocio Total","Trabajo nulo",AD37-AD32) -> 11.8 | BZ31: q | CA31: =IF(CA32="Ocio Total","Trabajo nulo",CA37-CA32) -> 11.8 | CB31: opt | CC31: max | CN31: q | CO31: =IF(CO32="Ocio Total","Trabajo nulo",CO37-CO32) -> 11.8 | CP31: =IF(CP32="Ocio Total","Trabajo nulo",CP37-CP32) -> 11.8 | DO31: q | DP31: =IF(DP32="Ocio Total","Trabajo nulo",DP37-DP32) -> 10.0 | DQ31: =IF(DQ32="Ocio Total","Trabajo nulo",DQ37-DQ32) -> 10.0 | DR31: =IF(DR32="Ocio Total","Trabajo nulo",DR37-DR32) -> 10.0 | DS31: =IF(DS32="Ocio Total","Trabajo nulo",DS37-DS32) -> 10.0 | DT31: =IF(DT32="Ocio Total","Trabajo nulo",DT37-DT32) -> 10.0
B32: x2 | C32: =E34 -> 100.0 | D32: x1 | E32: =(C30*E28*E29)/E30 -> 625.0 | F32: (w1 / P) * x1 | G32: =E30/E28*E32 -> 125.0 | M32: x2 | N32: =P34 -> 100.0 | O32: x1 | P32: =(N30*P28*P29)/P30 -> 625.0 | Q32: (w1 / P) * x1 | R32: =P30/P28*P32 -> 125.000 | Y32: o | Z32: =IF(Z40*(((Z34)+(Z35*Z37))/Z35)>$AA$37,"Ocio Total",Z40*(((Z34)+(Z35*Z37))/Z35)) -> 12.2 | AA32: =IF(AA40*(((AA34)+(AA35*AA37))/AA35)>$AA$37,"Ocio Total",AA40*(((AA34)+(AA35*AA37))/AA35)) -> 12.2 | AB32: =IF(AB40*(((AB34)+(AB35*AB37))/AB35)>$AA$37,"Ocio Total",AB40*(((AB34)+(AB35*AB37))/AB35)) -> 12.2 | AC32: =IF(AC40*(((AC34)+(AC35*AC37))/AC35)>$AA$37,"Ocio Total",AC40*(((AC34)+(AC35*AC37))/AC35)) -> 12.2 | AD32: =IF(AD40*(((AD34)+(AD35*AD37))/AD35)>$AD$37,"Ocio Total",AD40*(((AD34)+(AD35*AD37))/AD35)) -> 12.2 | BZ32: o | CA32: =IF(CA40*(((CA34)+(CA35*CA37))/CA35)>$AA$37,"Ocio Total",CA40*(((CA34)+(CA35*CA37))/CA35)) -> 12.2 | CB32: =CA40*(((CA34+(CA35*CA37)))/CA35) -> 12.2 | CC32: =((CA34+(CA35*CA37)))/CA35 -> 24.4 | CN32: o | CO32: =IF(CO40*(((CO34)+(CO35*CO37))/CO35)>$AA$37,"Ocio Total",CO40*(((CO34)+(CO35*CO37))/CO35)) -> 12.2 | CP32: =IF(CP40*(((CP34)+(CP35*CP37))/CP35)>$AA$37,"Ocio Total",CP40*(((CP34)+(CP35*CP37))/CP35)) -> 12.2 | DO32: o | DP32: =IF(DP40*(((DP34*DP36)+(DP35*DP37))/DP35)>$AA$37,"Ocio Total",DP40*(((DP34*DP36)+(DP35*DP37))/DP35)) -> 14.0 | DQ32: =IF(DQ40*(((DQ34*DQ36)+(DQ35*DQ37))/DQ35)>$AA$37,"Ocio Total",DQ40*(((DQ34*DQ36)+(DQ35*DQ37))/DQ35)) -> 14.0 | DR32: =IF(DR40*(((DR34*DR36)+(DR35*DR37))/DR35)>$AA$37,"Ocio Total",DR40*(((DR34*DR36)+(DR35*DR37))/DR35)) -> 14.0 | DS32: =IF(DS40*(((DS34*DS36)+(DS35*DS37))/DS35)>$AA$37,"Ocio Total",DS40*(((DS34*DS36)+(DS35*DS37))/DS35)) -> 14.0 | DT32: =IF(DT40*(((DT34*DT36)+(DT35*DT37))/DT35)>$AD$37,"Ocio Total",DT40*(((DT34*DT36)+(DT35*DT37))/DT35)) -> 14.0
B33: 1-a | C33: =mlc_Demanda_Factor_Variable!C11 -> 0.5 | D33: w2 | E33: =mlc_Demanda_Factor_Variable!G10 -> 4.0 | M33: 1-a | N33: =C33 -> 0.5 | O33: w2 | P33: =mlc_Demanda_Factor_Variable!G10 -> 4.0 | Y33: c | Z33: =((Z41)*((Z34)+(Z35*Z37)))/Z36 -> 61.0 | AA33: =((AA41)*((AA34)+(AA35*AA37)))/AA36 -> 61.0 | AB33: =((AB41)*((AB34)+(AB35*AB37)))/AB36 -> 61.0 | AC33: =((AC41)*((AC34)+(AC35*AC37)))/AC36 -> 61.0 | AD33: =((AD41)*((AD34)+(AD35*AD37)))/AD36 -> 61.0 | AE33: $AC$34+($AC$35/$AC$36*$AC$37)-(($AC$35/$AC$36)*(BB3)) | BZ33: c | CA33: =((CA41)*((CA34)+(CA35*CA37)))/CA36 -> 61.0 | CB33: =CA41*(((CA34+(CA35*CA37)))/CA36) -> 61 | CC33: =(CA34+CA35*CA37)/CA36 -> 122 | CN33: c | CO33: =((CO41)*((CO34)+(CO35*CO37)))/CO36 -> 61.0 | CP33: =((CP41)*((CP34)+(CP35*CP37)))/CP36 -> 61.0 | DO33: c | DP33: =((DP41)*((DP34*DP36)+(DP35*DP37)))/DP36 -> 70.0 | DQ33: =((DQ41)*((DQ34*DQ36)+(DQ35*DQ37)))/DQ36 -> 70.0 | DR33: =((DR41)*((DR34*DR36)+(DR35*DR37)))/DR36 -> 70.0 | DS33: =((DS41)*((DS34*DS36)+(DS35*DS37)))/DS36 -> 70.0 | DT33: =((DT41)*((DT34*DT36)+(DT35*DT37)))/DT36 -> 70.0
D34: x2 | E34: =mlc_Demanda_Factor_Variable!C10 -> 100.0 | O34: x2 | P34: =mlc_Demanda_Factor_Variable!G11 -> 100.0 | Y34: m | Z34: =AA34 -> 20.0 | AA34: =mlc_Oferta_Curva_Ocio_Consumo!C8 -> 20.0 | AB34: =AA34 -> 20.0 | AC34: =AA34 -> 20.0 | AD34: =AA34 -> 20.0 | BZ34: m | CA34: =mlc_Elección_Ocio_Consumo!C8 -> 20.0 | CN34: m | CO34: =mlc_Ingreso!C8 -> 20.0 | CP34: =CO34 -> 20.0 | DO34: m | DP34: =DQ34 -> 20.0 | DQ34: =mlc_Oferta_Trabajo!C8 -> 20.0 | DR34: =DQ34 -> 20.0 | DS34: =DQ34 -> 20.0 | DT34: =DQ34 -> 20.0
Y35: w | Z35: =IF((AA35=AB35),(AA35),(0.5*AA35)) -> 50.0 | AA35: =mlc_Oferta_Curva_Ocio_Consumo!C9 -> 50.0 | AB35: =IF(mlc_Oferta_Curva_Ocio_Consumo!D9>mlc_Oferta_Curva_Ocio_Consumo!C9,mlc_Oferta_Curva_Ocio_Consumo!D9,mlc_Oferta_Curva_Ocio_Consumo!C9) -> 50.0 | AC35: =IF(mlc_Oferta_Curva_Ocio_Consumo!E9>mlc_Oferta_Curva_Ocio_Consumo!D9,mlc_Oferta_Curva_Ocio_Consumo!E9,mlc_Oferta_Curva_Ocio_Consumo!D9) -> 50.0 | AD35: =IF(AC35=AB35,AC35,(1.5*AC35)) -> 50.0 | BZ35: w | CA35: =mlc_Elección_Ocio_Consumo!C9 -> 50.0 | CN35: w | CO35: =mlc_Ingreso!C9 -> 50.0 | CP35: =mlc_Ingreso!D9 -> 50.0 | DO35: w | DP35: =IF((DQ35=DR35),(DQ35),(0.5*DQ35)) -> 50.0 | DQ35: =mlc_Oferta_Trabajo!C9 -> 50.0 | DR35: =IF(mlc_Oferta_Trabajo!D9>mlc_Oferta_Trabajo!C9,mlc_Oferta_Trabajo!D9,mlc_Oferta_Trabajo!C9) -> 50.0 | DS35: =IF(mlc_Oferta_Trabajo!E9>mlc_Oferta_Trabajo!D9,mlc_Oferta_Trabajo!E9,mlc_Oferta_Trabajo!D9) -> 50.0 | DT35: =IF(DS35=DR35,DS35,(1.5*DS35)) -> 50.0
Y36: p | Z36: =AA36 -> 10.0 | AA36: =mlc_Oferta_Curva_Ocio_Consumo!C10 -> 10.0 | AB36: =AA36 -> 10.0 | AC36: =AA36 -> 10.0 | AD36: =mlc_Oferta_Curva_Ocio_Consumo!$E$10 -> 10.0 | BZ36: p | CA36: =mlc_Elección_Ocio_Consumo!C10 -> 10.0 | CN36: p | CO36: =mlc_Ingreso!C10 -> 10.0 | CP36: =CO36 -> 10.0 | DO36: p | DP36: =DQ36 -> 10.0 | DQ36: =mlc_Oferta_Trabajo!C10 -> 10.0 | DR36: =DQ36 -> 10.0 | DS36: =DQ36 -> 10.0 | DT36: =mlc_Oferta_Curva_Ocio_Consumo!$E$10 -> 10.0
N37: w1 | O37: =E30 -> 2.0 | P37: =P30 -> 2.0 | Y37: q max | Z37: 24.0 | AA37: 24.0 | AB37: 24.0 | AC37: 24.0 | AD37: 24.0 | BZ37: q max | CA37: 24.0 | CN37: q max | CO37: 24.0 | CP37: 24.0 | DO37: q max | DP37: 24.0 | DQ37: 24.0 | DR37: 24.0 | DS37: 24.0 | DT37: 24.0
N38: x1 | O38: =C29 -> 625.0 | P38: =P32 -> 625.0
Y39: Función de utilidad | Z39: Caso 0.5 | AA39: Caso 1 | AB39: Caso 2 | AC39: Caso 3 | AD39: Caso 5 | BZ39: Función de utilidad | CA39: Caso 1 | CN39: Función de utilidad | CO39: Caso 1 | CP39: Caso 2 | DO39: Función de utilidad | DP39: Caso 0.5 | DQ39: Caso 1 | DR39: Caso 2 | DS39: Caso 3 | DT39: Caso 5
Y40: a | Z40: =Ocultomlabcom!AA40 -> 0.5 | AA40: =mlc_Oferta_Curva_Ocio_Consumo!$C$14 -> 0.5 | AB40: =AA40 -> 0.5 | AC40: =AA40 -> 0.5 | AD40: =AA40 -> 0.5 | BZ40: a | CA40: =mlc_Elección_Ocio_Consumo!C14 -> 0.5 | CN40: a | CO40: =mlc_Ingreso!C14 -> 0.5 | CP40: =CO40 -> 0.5 | DO40: a | DP40: =Ocultomlabcom!DQ40 -> 0.5 | DQ40: =mlc_Oferta_Trabajo!C14 -> 0.5 | DR40: =DQ40 -> 0.5 | DS40: =DQ40 -> 0.5 | DT40: =DQ40 -> 0.5
Y41: 1-a | Z41: =1-Z40 -> 0.5 | AA41: =1-AA40 -> 0.5 | AB41: =1-AB40 -> 0.5 | AC41: =1-AC40 -> 0.5 | AD41: =1-AD40 -> 0.5 | BZ41: 1-a | CA41: =1-CA40 -> 0.5 | CN41: 1-a | CO41: =1-CO40 -> 0.5 | CP41: =1-CP40 -> 0.5 | DO41: 1-a | DP41: =1-DP40 -> 0.5 | DQ41: =1-DQ40 -> 0.5 | DR41: =1-DR40 -> 0.5 | DS41: =1-DS40 -> 0.5 | DT41: =1-DT40 -> 0.5
Y42: U | Z42: =IF(Z32="No viable","No viable",((Z32)^Z40)*((Z33^Z41))) -> 27.3 | AA42: =IF(AA32="No viable","No viable",((AA32)^AA40)*((AA33^AA41))) -> 27.3 | AB42: =IF(AB32="No viable","No viable",((AB32)^AB40)*((AB33^AB41))) -> 27.3 | AC42: =IF(AC32="No viable","No viable",((AC32)^AC40)*((AC33^AC41))) -> 27.3 | AD42: =IF(AD32="No viable","No viable",((AD32)^AD40)*((AD33^AD41))) -> 27.3 | BZ42: U | CA42: =IF(CA32="No viable","No viable",((CA32)^CA40)*((CA33^CA41))) -> 27.3 | CN42: U | CO42: =IF(CO32="No viable","No viable",((CO32)^CO40)*((CO33^CO41))) -> 27.3 | CP42: =IF(CP32="No viable","No viable",((CP32)^CP40)*((CP33^CP41))) -> 27.3 | DO42: U | DP42: =IF(DP32="No viable","No viable",((DP32)^DP40)*((DP33^DP41))) -> 31.3 | DQ42: =IF(DQ32="No viable","No viable",((DQ32)^DQ40)*((DQ33^DQ41))) -> 31.3 | DR42: =IF(DR32="No viable","No viable",((DR32)^DR40)*((DR33^DR41))) -> 31.3 | DS42: =IF(DS32="No viable","No viable",((DS32)^DS40)*((DS33^DS41))) -> 31.3 | DT42: =IF(DT32="No viable","No viable",((DT32)^DT40)*((DT33^DT41))) -> 31.3
